Cogmind - Beta 15 @@@ ROGUE MODE // 2025.05.22 @ 22:32:22 Player: Wyvric Result: Establishing 0b11! Performance ------------- Evolutions (9) 4500 Regions Visited (28) 5600 Robots Destroyed (693) 3465 Value Destroyed (44533) 44533 Prototype IDs (173) 3460 Alien Tech Used (8) 1600 Bonus (89203) 89203 TOTAL SCORE: 152361 Bonus ------- Triggered High Security 1500 High Alert Combat Kills 20117 Follower Combat Kills 690 Met Data Miner 300 Met Zhirov 300 Met Warlord at Base 500 MAIN.C Attacked Warlord 500 Warlord Defense Kills 1296 Met Warlord at Research 2000 Destroyed Superfortress 15000 Recovered Sigix Corpse 4000 Destroyed MAIN.C Guards 500 Met MAIN.C 5000 Destroyed MAIN.C Shell 5000 Destroyed MAIN.C 10000 Met Architect 300 Started Test 138-B 500 Destroyed A8 300 Destroyed A6 400 Destroyed A5 500 Destroyed A4 700 Destroyed A3 800 Destroyed A2 1000 Destroyed Architect 15000 Win 3000 Cogmind --------- Core Integrity 915/1600 Matter 280/300 Energy 780/793 System Corruption 0% Temperature Cool (12) Movement Walking (72) Location 0b11 Command Parts ------- > --- POWER (3) -------- Multi-Quantum Reactor > --- PROPULSION (6) --- Shield-HC Exoskeleton > --- UTILITY (12) ----- Armored Scrap Engine Concept Thermoelectric Network High-capacity Storage Unit Spectral Analyzer Concept Weapon Articulator Experimental Core Analyzer Improved Armor Integrity Analyzer Mini Quantum Capacitor Experimental Phase Shifter Experimental Powered Armor AEGIS Remote Shield > --- WEAPON (4) ------- Hvy. Accelerated Gatling Construct/C > --- INVENTORY (20) --- Zero-point Reactor Concept Thermoelectric Network Concept NT7 Matterbank (750) Long-range Terrain Scanner Experimental Core Analyzer Experimental Weapon Cycler Experimental Weapon Cycler Advanced Reaction Control System Experimental Phase Shifter Centrium Linked Plating Centrium Linked Plating AEGIS Remote Shield Architect God Chip A Architect God Chip D Architect God Chip D Concept Matter Streamer A3's Sniper Rifle Sigix Corpse Sigix Corpse Peak State ------------ > --- POWER ------------ Hybrid Graviton Reactor Multi-Quantum Reactor > --- PROPULSION ------- Shield-HC Exoskeleton > --- UTILITY ---------- Armored Scrap Engine Concept Thermoelectric Network Concept Antigrav Storage Unit Concept Weapon Articulator Improved Armor Integrity Analyzer Concept Cloak Mesh Graphene Brace Graphene Brace Concept Network Penetrator Experimental System Purifier Concept Impact Drone Bay > --- WEAPON ----------- Concept Variable Chargecaster Concept Variable Chargecaster Concept Plasma Driver Concept Plasma Driver > --- INVENTORY -------- Concept Thermoelectric Network Concept NT7 Matterbank Concept Weapon Articulator Experimental Kinecellerator Mini Quantum Capacitor AEGIS Remote Shield Concept Matter Streamer Subatomic Replicator Quantum Rifle KE Penetrator KE Penetrator Enhanced Hardcell Cannon Enhanced Hardcell Cannon Compact Linear Accelerator Hellfire Missile Launcher Concept Rapid Grenade Launcher Concept Rapid Grenade Launcher Concept Arcsight Missile Launcher Concept Tactical Fusion Warhead [Rating: 285] Favorites ----------- Power Constructs Engine Improved Ion Engine Power Core Enhanced Nuclear Core Reactor Constructs Propulsion Constructs Treads Light Treads Leg Constructs Wheel Compact Wheel Hover Unit Gravmag System Utility Armored Scrap Engine Device Armored Scrap Engine Storage Huge Storage Unit Processor Advanced Signal Interpreter Hackware Advanced Hacking Suite Protection Centrium Light Armor Plating Weapon Constructs Energy Gun Improved Medium Laser Energy Cannon Constructs Ballistic Gun Assault Rifle Ballistic Cannon Linear Accelerator Launcher Heavy Shock Bomb Launcher Special Weapon Multitool Impact Weapon Heavy Flail Slashing Weapon Sigix Broadsword Piercing Weapon Kinetic Spear Special Melee Weapon Improved Datajack Build | -11 -10 -10 -8 -8 -8 -6 -6 -6 -6 -5 -5 -5 -5 -5 -4 -4 -4 -4 -4 -3 -3 -3 -2 -2 -2 -1 -1 -1 ------- Run | Yrd Mat Sub Mat Sto Rec Fac Low Low Dat Pro Fac Upp Upp Zhi Pro Fac Upp Upp War Pro Res Qua Res Tes Frg Acc Com Ac0 Slots Evolved 18 | . . . 4 . . 4 . . . . 2 . . . . 2 . . . . 2 . 2 . . 2 . . Power 2 | . . . . . . . . . . . 1 . . . . 1 . . . . . . . . . . . . Propulsion 4 | . . . 2 . . 2 . . . . . . . . . . . . . . . . . . . . . . Utility 10 | . . . 2 . . 1 . . . . 1 . . . . 1 . . . . 1 . 2 . . 2 . . Weapon 2 | . . . . . . 1 . . . . . . . . . . . . . . 1 . . . . . . . Parts Attached 318 | 8 12 18 28 9 3 17 8 9 . 5 20 11 2 . 1 11 2 2 9 1 8 5 9 9 39 7 48 17 Power 20 | 1 2 2 3 . . 1 1 1 . . 1 . . . . . . . . . . . . . 2 1 5 . Engine 9 | 1 2 2 1 . . 1 . 1 . . 1 . . . . . . . . . . . . . . . . . Core 4 | . . . 2 . . . 1 . . . . . . . . . . . . . . . . . . 1 . . Reactor 7 | . . . . . . . . . . . . . . . . . . . . . . . . . 2 . 5 . Propulsion 17 | 2 1 3 6 3 . 2 . . . . . . . . . . . . . . . . . . . . . . Treads 11 | 2 1 3 3 2 . . . . . . . . . . . . . . . . . . . . . . . . Leg 2 | . . . . 1 . 1 . . . . . . . . . . . . . . . . . . . . . . Wheel 3 | . . . 3 . . . . . . . . . . . . . . . . . . . . . . . . . Hover 1 | . . . . . . 1 . . . . . . . . . . . . . . . . . . . . . . Flight . | . . . . . . . . . . . . . . . . . . . . . . . . . . . . . Utility 175 | 2 2 3 8 1 3 5 5 2 . 5 12 3 . . 1 11 2 2 8 . 6 2 6 8 34 3 24 17 Device 118 | 1 . 1 3 . 2 3 3 2 . 4 8 1 . . 1 9 1 2 8 . 3 2 3 8 24 2 18 9 Storage 9 | 1 1 . 1 . . . . . . . 1 . . . . . 1 . . . . . 1 . 1 . 2 . Processor 13 | . . . 1 . . 2 . . . . 1 . . . . . . . . . 1 . 1 . 5 . 1 1 Hackware 10 | . . . . . . . . . . . 1 . . . . 2 . . . . 2 . . . 1 1 1 2 Protection 25 | . 1 2 3 1 1 . 2 . . 1 1 2 . . . . . . . . . . 1 . 3 . 2 5 Artifact . | . . . . . . . . . . . . . . . . . . . . . . . . . . . . . Weapon 106 | 3 7 10 11 5 . 9 2 6 . . 7 8 2 . . . . . 1 1 2 3 3 1 3 3 19 . Energy Gun 29 | 2 3 2 . . . 3 . 4 . . 3 4 1 . . . . . . . . . 1 1 . . 5 . Energy Cannon 24 | . . 3 6 3 . . . . . . 2 1 1 . . . . . . 1 1 1 1 . . 2 2 . Ballistic Gun 18 | 1 1 . 3 1 . 4 . . . . 1 1 . . . . . . . . . 1 1 . . . 4 . Ballistic Cannon 11 | . . 2 1 . . 1 . . . . . . . . . . . . . . . . . . . . 7 . Launcher 17 | . 3 1 . 1 . . 2 1 . . 1 2 . . . . . . 1 . . . . . 3 1 1 . Special Weapon 3 | . . 2 . . . . . 1 . . . . . . . . . . . . . . . . . . . . Impact Weapon 1 | . . . . . . 1 . . . . . . . . . . . . . . . . . . . . . . Slashing Weapon 1 | . . . . . . . . . . . . . . . . . . . . . . 1 . . . . . . Piercing Weapon 1 | . . . . . . . . . . . . . . . . . . . . . 1 . . . . . . . Special Melee Weapon 1 | . . . 1 . . . . . . . . . . . . . . . . . . . . . . . . . Unidentified Prototypes 57 | . 1 . 1 2 1 . . . . . . . . 1 . . . . 4 . . 1 3 1 14 . 11 17 Corrupted Parts 5 | . . . . . . . . . . . . . . . . . . . 1 . . . . . . . 4 . System Corruption 36 | . . . . . . . . . . . . . . . . . . . 8 . . . . . . . 28 . Parts Lost 62 | . . 5 4 . . 3 2 4 . 1 4 2 1 . 1 . . . 3 . . . 2 1 9 . 18 2 Power 12 | . . 2 1 . . 1 1 1 . . 2 . . . . . . . . . . . . . 2 . 2 . Propulsion 5 | . . 2 3 . . . . . . . . . . . . . . . . . . . . . . . . . Utility 24 | . . 1 . . . . 1 . . 1 1 2 1 . 1 . . . 2 . . . 2 1 3 . 6 2 Weapon 21 | . . . . . . 2 . 3 . . 1 . . . . . . . 1 . . . . . 4 . 10 . Highest Loss Streak 7 | . . 2 3 . . 2 1 2 . 1 4 1 1 . 1 . . . 2 . . . 2 1 4 . 7 1 To Critical Strikes 3 | . . 1 . . . . . . . . 1 . . . . . . . . . . . . . . . . 1 Average Backups 21 | 4 11 14 15 22 23 23 22 23 25 24 24 24 23 24 24 24 24 24 24 24 24 24 23 22 23 24 20 19 Power . | . 1 . . 1 1 2 1 1 1 1 . . 1 1 1 1 1 1 . . . . . . . . . 1 Propulsion 3 | 2 2 1 2 7 9 6 7 4 7 7 4 3 3 1 3 3 5 5 6 5 4 2 4 3 1 1 . . Utility 9 | . 2 2 2 2 2 5 6 10 12 11 11 11 12 16 15 15 14 15 12 11 10 9 10 9 10 10 11 14 Weapon 5 | . 4 8 8 9 7 6 5 5 5 3 6 7 5 4 3 2 2 . 2 6 7 8 6 6 8 10 6 2 Tool/Special . | . . . . . . . . . . . . . . . . . . . . . . . . . . . . . Unused Backups 272 | . 8 1 3 1 11 15 16 6 . 3 17 18 6 4 3 13 3 2 12 2 7 6 14 12 43 10 19 17 Power 19 | . 2 1 1 . . 4 . 1 . . . 3 . 1 . 1 . . 2 . . . . . . . 2 1 Propulsion 82 | . 4 . . . 8 7 7 . . 2 8 7 4 . . 1 . . 8 . 1 2 8 . 7 5 3 . Utility 68 | . 1 . . 1 . 1 1 1 . 1 4 . . 2 1 5 . . 2 . 4 4 3 4 16 1 4 12 Weapon 102 | . 1 . 2 . 3 3 8 3 . . 5 8 2 1 2 6 3 2 . 2 2 . 3 8 20 4 10 4 Tool/Special 1 | . . . . . . . . 1 . . . . . . . . . . . . . . . . . . . . Average Slot Usage (%) 58 | . 100 99 94 100 59 53 54 47 53 58 53 50 47 46 47 46 47 47 46 54 59 54 49 46 51 64 49 55 Engine 3 | . 14 13 5 . 4 5 5 3 . 3 3 3 4 5 5 1 2 4 . 2 . . . . . . . . Reactor 1 | . . . . . . . . . . . 1 1 . . . 3 2 . 3 . . 3 4 4 3 5 5 4 Treads 6 | . 28 27 20 27 10 2 . . . . . 4 5 5 5 5 5 5 3 . . . . 4 . . 2 . Leg 1 | . . . . 5 1 1 3 . . . . . . . . . . . 1 5 4 . 1 . 1 . 1 4 Hover 1 | . . . . . . . 2 6 6 6 5 . . . . . . . . . . 3 1 . . . . . Device 15 | . 3 6 15 18 15 11 12 13 13 12 16 16 12 10 11 15 21 21 20 21 9 13 18 16 19 27 21 25 Storage 6 | . 14 14 9 9 7 5 6 6 6 6 5 5 5 5 5 5 5 5 5 5 4 4 4 4 4 4 4 4 Processor 4 | . . . . . . 4 6 6 6 6 5 5 5 5 5 5 5 5 5 5 8 9 8 8 7 8 4 10 Protection 2 | . 10 7 9 9 . 2 . . . . . . 3 5 5 . . . . . . . 2 3 3 . 2 4 Energy Gun 2 | . 19 16 . . 2 4 2 . . 1 6 1 . . . . . . . 2 . . . . . . 1 . Energy Cannon 4 | . . 9 5 17 9 4 5 4 . 1 3 2 4 . . 2 2 4 4 3 2 . . . 3 5 2 2 Ballistic Gun 1 | . 8 . 9 . . 2 4 . 6 4 . . . . . . . . . 2 2 1 . . . . . . Ballistic Cannon 1 | . . . 1 . . . . . . . . 2 . 5 4 2 2 . . . 2 4 3 3 . . 2 1 Launcher 1 | . . 1 1 . . . . 1 1 9 . 1 . . . . . . . 3 4 . . . . 4 . . Peak Build Rating 285 | 7 14 19 40 44 61 86 94 90 89 91 107 105 106 105 108 122 124 124 141 150 165 183 194 202 259 282 285 258 Average Rating 122 | 5 11 13 29 42 54 68 79 86 80 87 94 97 101 103 106 114 121 122 128 140 159 177 177 190 228 262 230 251 On Entrance 110 | . 7 13 18 40 43 56 84 90 80 89 80 86 100 102 104 105 121 124 123 140 148 164 171 185 195 223 266 247 Naked Turns . | . . . . . . . . . . . . . . . . . . . . . . . . . . . . . Heaviest Build 224 | 14 36 48 107 112 112 119 129 117 117 125 122 146 136 128 128 150 148 146 143 177 186 188 222 211 224 135 194 197 Greatest Support 305 | 40 40 40 40 83 83 121 121 94 94 141 141 164 248 248 248 248 248 142 207 252 252 252 251 251 295 215 305 305 Greatest Overweight (x) 6 | . . 1 6 6 2 1 1 1 1 1 1 1 . . . . . 1 . . . . 1 . . . 1 . Average Overweight (x) . | . . . 2 2 1 . . . 1 . . . . . . . . . . . . . . . . . . . Largest Inventory Capacity 25 | 8 15 15 25 25 25 25 25 25 25 25 25 25 25 25 25 25 25 25 25 25 25 25 25 25 25 25 25 20 Average Capacity 23 | 6 11 15 19 25 25 25 25 25 25 25 25 25 25 25 25 25 25 25 25 25 25 25 25 25 25 25 24 20 Most Carried 25 | 6 15 15 25 25 25 25 25 25 25 25 25 25 25 25 25 25 25 25 25 25 25 25 25 25 25 25 25 20 Average Carried 22 | 4 11 14 17 24 24 24 24 24 24 24 24 24 23 24 24 24 24 24 24 24 24 24 24 24 24 24 21 19 Final Capacity 25 | 8 15 15 25 25 25 25 25 25 25 25 25 25 25 25 25 25 25 25 25 25 25 25 25 25 25 25 20 20 Final Carried 25 | 6 15 15 25 25 25 23 25 25 24 25 25 25 25 25 25 25 25 25 25 25 25 25 24 23 23 24 20 19 Scrap Engine Consumption 660 | . . . . . 79 27 37 21 . 14 25 31 9 2 5 23 7 8 54 7 10 11 40 20 65 14 144 7 Constructs Created 18 | . . . . . 3 2 1 2 . 1 . 2 . . . . . . . 1 1 . 1 . 2 . 2 . Constructs Modified 282 | . . . . . 23 13 17 7 . 7 7 16 4 . 2 3 12 4 17 10 2 4 21 12 20 7 63 11 Class Distribution -------------------- 67% | Construct 18% | Mutant 5% | Scavenger-Construct Dominant Class ---------------- Mutant | -10/Materials Mutant | -10/Subcaves Mutant | -8/Materials Mutant | -8/Storage Construct | -8/Recycling Construct | -6/Factory Construct | -6/Lower Caves Construct | -6/Lower Caves Construct | -6/Data Miner Construct | -5/Proximity Caves Construct | -5/Factory Construct | -5/Upper Caves Construct | -5/Upper Caves Construct | -5/Zhirov Construct | -4/Proximity Caves Construct | -4/Factory Construct | -4/Upper Caves Construct | -4/Upper Caves Construct | -4/Warlord Construct | -3/Proximity Caves Hacker-Construct | -3/Research Construct | -3/Quarantine Construct | -2/Research Construct | -2/Testing Construct | -2/Protoforge Hacker-Gunner | -1/Access Construct | -1/Command Scavenger-Construct | -1/Access_0 Resources | -11 -10 -10 -8 -8 -8 -6 -6 -6 -6 -5 -5 -5 -5 -5 -4 -4 -4 -4 -4 -3 -3 -3 -2 -2 -2 -1 -1 -1 ----------- Run | Yrd Mat Sub Mat Sto Rec Fac Low Low Dat Pro Fac Upp Upp Zhi Pro Fac Upp Upp War Pro Res Qua Res Tes Frg Acc Com Ac0 Matter Collected 17036 | 168 325 777 698 123 122 366 460 300 . 772 392 673 196 . 382 605 288 94 407 342 287 357 266 1006 2673 486 2150 2321 Remotely 2117 | . . . . . . . . . . . . . . . . . . . . . . . . 213 . 283 979 642 Salvage Created 42938 | 11 461 625 1021 520 1346 688 1180 858 . 1644 1088 931 403 94 878 1161 197 159 400 683 487 1341 432 1293 16598 868 2830 4741 Parts 1808 | 3 25 41 53 37 44 24 37 40 . 52 57 47 5 2 32 53 8 4 8 35 23 72 17 77 558 30 71 353 Haulers Intercepted 4 | . . . . . 1 . . . . . . . . . . 2 . . . 1 . . . . . . . . Recyclers Shooed 14 | . 2 . 2 . 3 . . . . . 2 . . . . 1 . . . . 1 . . . . 1 2 . Parts Field Recycled . | . . . . . . . . . . . . . . . . . . . . . . . . . . . . . Retrieved Matter . | . . . . . . . . . . . . . . . . . . . . . . . . . . . . . Parts Self-Destructed 114 | . . 14 . . . . 19 9 . 15 . 14 . 2 21 . 7 . . 13 . . . . . . . . Prevented 108 | . . . . . . . 15 26 . 28 . 26 4 . . . . . . 9 . . . . . . . . Kills | -11 -10 -10 -8 -8 -8 -6 -6 -6 -6 -5 -5 -5 -5 -5 -4 -4 -4 -4 -4 -3 -3 -3 -2 -2 -2 -1 -1 -1 ------- Run | Yrd Mat Sub Mat Sto Rec Fac Low Low Dat Pro Fac Upp Upp Zhi Pro Fac Upp Upp War Pro Res Qua Res Tes Frg Acc Com Ac0 Combat Hostiles Destroyed 595 | . 11 16 21 9 18 15 22 12 . 20 18 15 6 . 10 10 6 2 10 19 7 20 4 17 233 8 21 45 Melee 4 | . . . . . . . . . . . . . . . . 1 . . . . . 1 . 1 1 . . . Guns 49 | . 8 5 11 . 3 7 3 . . . 4 4 . . . . . . . . . . . . . . 4 . Cannons 350 | . . 7 4 9 12 5 5 5 . 2 3 2 3 . 10 9 6 1 1 1 1 19 4 15 170 1 12 43 AOE 124 | . 3 2 6 . . . 10 3 . 6 9 7 . . . . . . 9 15 5 . . 1 45 2 1 . Classes Destroyed 34 | 1 4 2 5 1 5 1 . 1 . . . . . . . 1 . 1 . 1 . . . 2 8 . 1 . Worker 12 | . 2 . . 2 . 1 . . . . 1 . . . . 1 . . . . 2 . . 1 . . 2 . Builder 16 | . . . . . 1 . . . . . 5 . . . . . . . . . . 6 . 3 1 . . . Tunneler 3 | 1 . . . . . 1 . . . . . . . . . 1 . . . . . . . . . . . . Hauler 4 | . . . . . 1 . . . . . . . . . . 2 . . . 1 . . . . . . . . Recycler 16 | . 2 . 3 . 3 . . . . . 1 . . . . 2 . . . . 1 . 1 1 . 1 1 . Carrier 20 | . . . . . . . . . . . . . . . . . . . . . . . . . 20 . . . Minesweeper 1 | . . . . . . . . . . . . . . . . . . . . 1 . . . . . . . . Mechanic 11 | . . . . . . . . . . . . . . . . . . . . . . . . 1 10 . . . Operator 3 | . . . 1 1 . . . . . . . . . . . . . . . . 1 . . . . . . . Drone 6 | . . . . . . . . . . . . . . . . 1 . . . 2 . . . . 3 . . . Watcher 12 | . . . 1 . . . . . . . 1 . . . . . . . . . . 1 . 2 5 1 1 . Swarmer 66 | . 3 . 6 . . 7 6 2 . 1 4 4 . . 1 . 5 . 1 8 5 4 . . 9 . . . Saboteur 9 | . . . . . . . . . . . . . . . . . . . . . . . . . 9 . . . Grunt 146 | . 8 . 7 1 5 5 11 7 . 11 7 4 5 . 4 3 . . 7 7 . 3 . 6 38 . 7 . Brawler 22 | . . . . . 1 . 1 . . 3 . . . . . 1 . . . . . . . . 15 . 1 . Duelist 21 | . . . 2 . 1 . 3 . . 2 . . . . 4 . . 1 . . . . . . 8 . . . Protector 15 | . . . . . 2 . . . . . . . . . . . . . . . . . . . 13 . . . Researcher 1 | . . . . . . . . . . . . . . . . . . . . . . . . . 1 . . . Sentry 54 | . . . 4 7 2 2 1 2 . 1 2 1 1 . 3 3 1 . . . 2 4 3 . 13 1 1 . Demolisher 3 | . . . . . 1 . . . . . . . . . . . . . 1 . . . 1 . . . . . Specialist 7 | . . . 2 . . . . . . . . . . . . . . . 1 . . . . . 4 . . . Hunter 32 | . . . . 1 . . . . . . 1 . . . . . . . . 2 . . . 2 20 5 1 . Programmer 69 | . . . . . . 1 . . . 2 4 1 . . . 2 . . . . . 9 . 8 36 2 4 . Heavy 1 | . . . . . . . . . . . . . . . . . . . . . . . . . . . 1 . Behemoth 2 | . . . . . . . . 1 . . . 1 . . . . . . . . . . . . . . . . M Guard 1 | . . . . . . . . . . . . . . . . . . . . . . . . . . . 1 . Enhanced Grunt 29 | . . . . . . . . . . . . . . . . . . . . . . . . . . . . 29 Enhanced Sentry 2 | . . . . . . . . . . . . . . . . . . . . . . . . . . . . 2 Enhanced Hunter 7 | . . . . . . . . . . . . . . . . . . . . . . . . . . . . 7 Hotshot 26 | . . . . . . . . . . . . . . . . . . . . . . . . . 26 . . . Decapitator 7 | . . . . . . . . . . . . . . . . . . . . . . . . . 7 . . . Immortal 4 | . . . . . . . . . . . . . . . . . . . . . . . . . 4 . . . Combat Programmer 2 | . . . . . . . . . . . . . . . . . . . . . . . . . . . 2 . Investigator 1 | . . . . . . . . . . . . . . . . . . . . . . . . . 1 . . . Striker 9 | . . . . . . . . . . . . . . . . . . . . . . . . . 8 . 1 . Executioner 10 | . . . . . . . . . . . . . . . . . . . . . . . . . 10 . . . Alpha 7 2 | . . . . . . . . . . . . . . . . . . . . . . . . . 2 . . . V-Series 7 | . . . . . . . . . . . . . . . . . . . . . . . . . 7 . . . Artisan 1 | . . 1 . . . . . . . . . . . . . . . . . . . . . . . . . . Subdweller 22 | . . 16 . . 6 . . . . . . . . . . . . . . . . . . . . . . . Decomposer 2 | . . . . . . . . . . . . 2 . . . . . . . . . . . . . . . . Assembled 1 | . . . . . . . . . . . . . . . . . . . . . . . . 1 . . . . Thug 4 | . . . . . . . . . . . . 4 . . . . . . . . . . . . . . . . Mutant 1 | . . . . . . . . . . . . . . . . . . 1 . . . . . . . . . . Best Kill Streak 77 | 1 6 3 5 3 4 5 6 6 . 5 6 4 4 . 4 3 4 1 9 9 7 6 1 4 77 7 13 7 Combat Bots Only 63 | . 3 3 4 2 4 5 6 6 . 5 4 4 4 . 4 3 4 1 9 8 5 4 1 4 63 5 10 7 Max Kills in Single Turn 8 | 1 3 1 3 1 1 2 4 1 . 2 6 3 1 . 1 1 1 1 5 3 5 1 1 1 8 1 2 1 Gunslinging 1 | . 1 . . . . 1 . . . . . . . . . . . . . . . . . . . . . . Exploded 8 | . 2 1 2 . . . 4 1 . 2 4 3 . . . . . . 5 3 4 . . 1 8 1 1 . Melee 1 | . . . . . . . . . . . . . . . . 1 . . . . . 1 . 1 1 . . . Uniques/NPCs Destroyed 10 | . . . . . . . . . . . . . . . . . . . . . . . . . 1 . 2 7 Superfortress (-2/Protoforge) MAIN.C Shell (-1/Command) MAIN.C (-1/Command) A8 (-1/Access_0) A6 (-1/Access_0) A2 (-1/Access_0) A5 (-1/Access_0) A4 (-1/Access_0) Architect (-1/Access_0) A3 (-1/Access_0) Combat | -11 -10 -10 -8 -8 -8 -6 -6 -6 -6 -5 -5 -5 -5 -5 -4 -4 -4 -4 -4 -3 -3 -3 -2 -2 -2 -1 -1 -1 -------- Run | Yrd Mat Sub Mat Sto Rec Fac Low Low Dat Pro Fac Upp Upp Zhi Pro Fac Upp Upp War Pro Res Qua Res Tes Frg Acc Com Ac0 Hostile Shots Fired 3444 | . 31 63 109 37 32 181 64 249 . 68 170 95 29 . 37 69 40 15 286 38 9 155 92 101 669 29 327 449 Missed 1339 | . 10 19 29 12 12 53 17 91 . 21 55 37 6 . 8 20 13 5 112 22 4 67 33 31 258 17 89 298 Hits 2105 | . 21 44 80 25 20 128 47 158 . 47 115 58 23 . 29 49 27 10 174 16 5 88 59 70 411 12 238 151 Melee 39 | . . . 7 . . . . . . . . . . . . 5 . . 3 . . . . 3 10 . 2 9 Projectile 2066 | . 21 44 73 25 20 128 47 158 . 47 115 58 23 . 29 44 27 10 171 16 5 88 59 67 401 12 236 142 AOE 43 | . . 2 . . 1 . . . . . 2 . . . . . . . 11 . . . 7 . 8 . 12 . Critical Strikes 131 | . . 2 2 . . 4 5 1 . 4 7 3 3 . 2 4 . 1 9 . . 8 1 4 41 . 17 13 Actively Blocked 22 | . . . . . . . . . . . . . . . . . . . 8 . . . . 2 . . 12 . Part Disruptions 5 | . . . . . . . . . . . . . . . . . . . . . . . . . . . 5 . Damage Taken 45836 | . 229 1126 1144 377 483 1767 845 1901 . 1098 2638 991 429 . 576 902 187 36 4284 273 60 1075 1186 1969 10347 180 8804 2929 Core 3706 | . 33 214 139 44 61 142 25 192 . 91 266 126 63 . 37 40 30 . 546 . . 91 54 156 545 . 534 277 Absorbed by Shields 9487 | . . . . . . 355 . . . . 45 144 31 . . 278 199 39 1451 138 63 1053 741 . 1711 65 317 2857 Reduced by Siege Mode 1142 | . . . . . . . . . . . . . . . . . . . . . . . . . . . 1142 . Redirected to Shielding 89 | . . . 3 . . . . . . . . . . . . . . . . . . . . . 86 . . . Ignored by Resistances 484 | . . . 76 . . . 45 . . 15 55 73 . . . 132 88 . . . . . . . . . . . Regen/Repaired (Parts) 22335 | . . . 145 . 61 724 321 397 . 1390 492 1699 124 . 216 232 932 5 1401 1742 . 625 684 294 5251 1377 2948 1275 Core Remaining (%) 54 | 100 . 1 . . 55 . . . . 47 . . . . 50 . . . . 46 . 93 . . 43 . . 57 Volleys Fired 1738 | 5 24 105 66 29 91 43 35 37 . 51 58 46 17 5 34 66 22 8 15 25 15 99 21 62 312 18 121 308 Largest 4 | 2 2 2 2 2 2 3 3 3 . 2 3 3 1 1 1 1 1 1 1 1 2 1 1 1 2 2 4 1 Hottest 599 | 60 112 160 138 160 160 239 402 519 . 92 224 230 136 136 175 208 208 477 566 88 176 113 72 388 599 219 424 239 Shots Fired 2157 | 10 47 148 108 51 112 100 62 50 . 73 98 68 17 5 34 66 22 8 15 25 19 99 21 60 288 19 224 308 Gun 466 | 10 40 63 63 . 22 62 19 18 . 11 35 34 . . . . . . . . . . . . . . 89 . Cannon 1505 | . . 74 40 51 90 38 33 17 . 12 58 11 17 5 34 66 22 8 11 14 16 99 21 60 266 9 125 308 Launcher 186 | . 7 11 5 . . . 10 15 . 50 5 23 . . . . . . 4 11 3 . . . 22 10 10 . Special . | . . . . . . . . . . . . . . . . . . . . . . . . . . . . . Kinetic 779 | 5 12 15 76 . . 31 15 2 . . 2 19 . 5 34 39 . . 6 . 5 97 21 19 18 . 109 249 Thermal 911 | 5 25 122 21 47 112 46 33 15 . 12 82 17 . . . 27 22 8 5 . . 2 . 35 111 8 97 59 Explosive 52 | . 7 11 3 . . . . . . . . . . . . . . . 4 11 3 . . . 10 . 3 . Electromagnetic 310 | . 3 . 8 4 . 23 14 33 . 61 14 32 17 . . . . . . 14 11 . . 6 44 11 15 . Entropic 105 | . . . . . . . . . . . . . . . . . . . . . . . . . 105 . . . Robot Hit Streak 50 | 5 11 15 12 11 16 11 6 8 . 8 7 13 6 5 7 20 6 2 3 7 7 14 5 9 32 5 50 19 Robot Miss Streak 7 | 1 3 4 3 2 3 4 2 2 . 3 3 3 3 . 2 2 3 1 2 2 2 5 2 7 5 . 2 3 Penetration Max 1 | . . . . . . . . . . . . . . . . . . . . . . . . . 1 . . . Secondary Targets 8 | . 1 1 2 . . 3 1 . . . . . . . . . . . . . . . . . . . . . Max Gunslinging Chain 1 | . 1 1 1 . . 1 1 . . . . . . . . . . . . . . . . . . . . . Capacitor 306 | . . . . . . . . . . . . . . . . . . . . . . . . . 123 . 31 152 Shots Hit Robots 1330 | 8 26 64 64 24 87 67 32 34 . 33 48 40 11 5 19 38 11 3 6 15 8 78 9 19 236 5 178 162 Core Hits 901 | 2 23 20 37 13 26 30 37 18 . 33 36 25 3 1 9 14 2 1 17 28 12 29 8 19 308 10 65 75 Critical Kills 17 | . . 2 1 . 2 1 1 . . . 1 1 . . . . . . . . . . 1 . 4 1 . 2 Critical Parts Destroyed 9 | . . . . . . 3 . . . . . . . . . . . . . . . . . . 5 . 1 . Critical Strikes 49 | . 1 8 1 . 2 4 1 1 . . 1 1 . . . . . . . . 1 2 1 . 9 1 3 12 Burn 7 | . 1 6 . . . . . . . . . . . . . . . . . . . . . . . . . . Meltdown 10 | . . 2 . . 2 1 1 . . . 1 . . . . . . . . . . . . . . 1 . 2 Destroy 13 | . . . 1 . . . . . . . . 1 . . . . . . . . . . 1 . 9 . 1 . Blast 12 | . . . . . . . . . . . . . . . . . . . . . . . . . . . 2 10 Corrupt 2 | . . . . . . . . 1 . . . . . . . . . . . . 1 . . . . . . . Smash 3 | . . . . . . 3 . . . . . . . . . . . . . . . . . . . . . . Sever 2 | . . . . . . . . . . . . . . . . . . . . . . 2 . . . . . . Melee Attacks 62 | . . . . . . 17 . . . . . . . . . . . . . . 5 40 . . . . . . Impact 17 | . . . . . . 17 . . . . . . . . . . . . . . . . . . . . . . Slashing 29 | . . . . . . . . . . . . . . . . . . . . . . 29 . . . . . . Piercing 16 | . . . . . . . . . . . . . . . . . . . . . 5 11 . . . . . . Sneak Attacks 6 | . . . . . . 2 . . . . . . . . . . . . . . . 4 . . . . . . Combat Hostiles . | . . . . . . . . . . . . . . . . . . . . . . . . . . . . . Follow-up Attacks . | . . . . . . . . . . . . . . . . . . . . . . . . . . . . . Damage Inflicted 185006 | 91 753 1347 1785 653 2042 1740 2040 1715 . 2371 3455 1777 962 503 1902 3000 1020 304 1539 3235 1175 5113 715 3316 93367 1639 12169 35278 Guns 7513 | 91 369 737 827 . 384 728 290 199 . 141 446 519 . . . . . . . . . . . . . . 2782 . Cannons 144318 | . . 439 400 617 1658 657 529 890 . 316 1120 432 962 503 1902 2931 1020 304 307 364 225 3805 715 2708 77852 320 8169 35173 Explosions 30600 | . 350 171 558 . . . 1221 626 . 1914 1889 826 . . . . . . 1232 2871 803 . . 180 15350 1319 1185 105 Melee 1654 | . . . . . . 346 . . . . . . . . . . . . . . . 1308 . . . . . . Ramming 921 | . 34 . . 36 . 9 . . . . . . . . . 69 . . . . 147 . . 428 165 . 33 . Kinetic 47059 | 34 111 80 1336 . . 403 192 152 . . 23 573 . 503 1902 1685 . . 106 . . 3805 715 635 2564 . 6482 25758 Thermal 72540 | 57 246 1096 148 543 2042 754 848 738 . 362 2819 282 . . . 1246 1020 304 201 194 . . . 2033 43462 320 4305 9520 Explosive 17218 | . 350 171 178 . . . . . . . . . . . . . . . 1232 2677 803 . . 180 11362 . 265 . Electromagnetic 19227 | . 12 . 123 74 . 228 1000 825 . 2009 613 922 962 . . . . . . 364 225 . . 40 9427 1319 1084 . Impact 346 | . . . . . . 346 . . . . . . . . . . . . . . . . . . . . . . Slashing 1212 | . . . . . . . . . . . . . . . . . . . . . . 1212 . . . . . . Piercing 96 | . . . . . . . . . . . . . . . . . . . . . . 96 . . . . . . Entropic 26387 | . . . . . . . . . . . . . . . . . . . . . . . . . 26387 . . . Highest Corruption 55 | . 4 4 . . . . 1 1 1 8 7 7 . . . . . 1 9 1 . 3 2 12 55 . 35 . Average Corruption 6 | . 4 3 . . . . 1 1 1 6 2 4 . . . . . 1 1 1 . 1 1 8 29 . 10 . Corruption Purged 62 | . . 4 . . . . . . . . . 7 . . . . . . . . . . . . . . 51 . Corruption Blocked . | . . . . . . . . . . . . . . . . . . . . . . . . . . . . . Effects 422 | . 16 61 . . . . 8 18 1 63 10 6 . . . . . 6 8 6 . 8 2 29 134 . 46 . Message Errors 86 | . 5 11 . . . . 1 3 1 13 2 2 . . . . . 2 2 3 . 1 1 6 28 . 5 . Matter Fused 81 | . 1 14 . . . . 3 3 . 9 2 2 . . . . . 2 1 1 . 1 . 7 19 . 16 . Heat Flow Errors 48 | . 4 6 . . . . . 2 . 7 1 1 . . . . . . 3 2 . 2 . 3 13 . 4 . Energy Discharges 39 | . 1 4 . . . . 1 7 . 8 1 . . . . . . 1 . . . . . 3 5 . 8 . Parts Rejected 13 | . . 1 . . . . . 1 . 2 1 . . . . . . . . . . 1 . . 7 . . . Parts Fused 8 | . . 3 . . . . . . . . . . . . . . . . . . . . . 1 2 . 2 . Data Loss (minor) 58 | . 3 11 . . . . 2 2 . 12 1 1 . . . . . 1 2 . . 2 1 4 13 . 3 . Data Loss (major) 20 | . . 2 . . . . . . . 5 1 . . . . . . . . . . 1 . 2 8 . 1 . Misfires 9 | . 2 3 . . . . . . . 3 . . . . . . . . . . . . . . . . 1 . Alerts 10 | . . 5 . . . . . . . 2 1 . . . . . . . . . . . . 1 1 . . . Misdirections 12 | . . . . . . . . . . . . . . . . . . . . . . . . . 12 . . . Weapon Failures 38 | . . 1 . . . . 1 . . 2 . . . . . . . . . . . . . 2 26 . 6 . Overload Shots . | . . . . . . . . . . . . . . . . . . . . . . . . . . . . . Overflow Damage 22976 | . . . 48 . 58 253 36 273 . 1 249 54 105 . 189 226 245 43 62 134 91 957 . 499 14878 119 348 4108 Projectiles 20939 | . . . 30 . 58 17 . 273 . . 76 48 105 . 189 226 245 43 . . . 469 . 410 14318 54 270 4108 Explosions 1170 | . . . 18 . . . 36 . . 1 173 6 . . . . . . 62 134 50 . . . 560 65 65 . Melee 867 | . . . . . . 236 . . . . . . . . . . . . . . 41 488 . 89 . . 13 . Knockbacks 158 | . 2 . . . . 7 . . . . . 3 . . 2 7 . . 1 . 2 33 1 5 9 . 23 63 Impact 13 | . 2 . . . . 3 . . . . . . . . . . . . . . 2 . . 5 1 . . . Kinetic 135 | . . . . . . 4 . . . . . 3 . . 2 7 . . 1 . . 28 1 . 8 . 21 60 Secondary 10 | . . . . . . . . . . . . . . . . . . . . . . 5 . . . . 2 3 Self-Inflicted Damage 1137 | . 11 49 78 . . . 7 . . 186 273 49 . . . . . . . 93 . . . 118 240 . 33 . Shots 35 | . 1 2 2 . . . 1 . . 12 6 3 . . . . . . . 1 . . . 2 4 . 1 . Rammed 25 | . 6 . . 2 . 1 . . . . 1 . . . . 2 . . . . . . . 10 2 . 1 . Targets Rammed 39 | . 6 . . 4 . 1 . . . . 1 . . . . 3 . . . . 5 . . 13 5 . 1 . Kicked 6 | . . . . . . . . . . . . . . . . . . . . . 5 . . . 1 . . . Crushed 8 | . . . . 2 . . . . . . . . . . . 1 . . . . . . . 3 2 . . . Highest Temperature 671 | . 252 333 140 261 360 410 353 463 . 297 272 264 276 208 180 359 275 336 671 209 156 168 31 417 621 100 203 183 Average Temperature 97 | . 75 44 33 73 130 159 72 197 . 66 70 93 116 95 67 104 107 149 172 78 67 84 24 90 133 26 58 110 Received Heat Transfer 6628 | . 93 444 342 90 42 630 323 621 . 174 344 291 105 . 132 75 12 31 514 15 4 78 9 66 1661 . 434 98 Effects 36 | . . 1 . . 4 3 . 12 . . . 1 . . . 6 . . 4 . . . . 1 2 . 2 . Shutdowns 6 | . . . . . 1 1 . 3 . . . . . . . . . . 1 . . . . . . . . . Energy Bleed 9 | . . 1 . . 1 . . 1 . . . . . . . 3 . . . . . . . 1 . . 2 . Interference 11 | . . . . . 2 . . 3 . . . 1 . . . 3 . . 2 . . . . . . . . . Short Circuit 1 | . . . . . . 1 . . . . . . . . . . . . . . . . . . . . . . Damage (minor) 5 | . . . . . . 1 . 1 . . . . . . . . . . 1 . . . . . 2 . . . Damage (major) 4 | . . . . . . . . 4 . . . . . . . . . . . . . . . . . . . . Siege Activations 2 | . . . . . . . . . . . . . . . . . . . . . . . . . . . 2 . Total Turns 133 | . . . . . . . . . . . . . . . . . . . . . . . . . . . 133 . Longest Duration 73 | . . . . . . . . . . . . . . . . . . . . . . . . . . . 73 . Martial Activations . | . . . . . . . . . . . . . . . . . . . . . . . . . . . . . Shielding Activations . | . . . . . . . . . . . . . . . . . . . . . . . . . . . . . Robots Disrupted . | . . . . . . . . . . . . . . . . . . . . . . . . . . . . . Combat Hostiles . | . . . . . . . . . . . . . . . . . . . . . . . . . . . . . Robots Corrupted 66 | . . . . . . 3 3 4 . 12 1 2 3 . . . . . . 3 2 1 . 3 19 5 5 . Combat Hostiles 56 | . . . . . . 2 3 4 . 12 1 2 3 . . . . . . 3 1 . . . 17 4 4 . Parts Fried 167 | . . . 1 1 . 5 4 4 . 10 6 6 8 . . . . . . 4 5 2 . 4 84 10 13 . Impact Corruptions 21 | . . . . . . 7 . . . . . . . . . . . . . . 2 2 . 7 . . 1 2 Robots Melted 12 | . . 2 . . 3 1 1 . . . 1 . . . . . . 1 . . . . . . . 1 . 2 Combat Hostiles 10 | . . 2 . . 1 1 1 . . . 1 . . . . . . 1 . . . . . . . 1 . 2 Parts Melted 50 | . 2 4 . 2 4 1 2 . . 2 6 . . . . 4 . 3 . . . . . . 3 3 5 9 Heat Transferred 26173 | 125 605 2442 185 1050 2266 1409 1400 587 . 550 2467 359 . . . 555 444 111 73 150 . . . 518 9350 150 1365 12 Parts Sabotaged 4 | . . . . . . . . . . . . . . . . . . . 4 . . . . . . . . . Parts Stolen . | . . . . . . . . . . . . . . . . . . . . . . . . . . . . . Parts Stripped . | . . . . . . . . . . . . . . . . . . . . . . . . . . . . . Power Chain Reactions 12 | . . . . . . . 2 2 . 1 . . . . . . . . . 1 . . . . 5 . . 1 Alert | -11 -10 -10 -8 -8 -8 -6 -6 -6 -6 -5 -5 -5 -5 -5 -4 -4 -4 -4 -4 -3 -3 -3 -2 -2 -2 -1 -1 -1 ------- Run | Yrd Mat Sub Mat Sto Rec Fac Low Low Dat Pro Fac Upp Upp Zhi Pro Fac Upp Upp War Pro Res Qua Res Tes Frg Acc Com Ac0 Maximum Alert Level 5 | . . . 1 . . 1 . . . . 3 . . . . . . . . . 1 2 1 1 5 5 5 . Low Security (%) 46 | 100 100 . 63 100 100 89 . . . . . . . . . 100 . . . . 35 38 75 53 6 . . . Level 1 13 | . . . 36 . . 10 . . . . 29 . . . . . . . . . 64 48 25 46 19 . . . Level 2 4 | . . . . . . . . . . . 69 . . . . . . . . . . 13 . . 11 . . . Level 3 . | . . . . . . . . . . . 1 . . . . . . . . . . . . . 2 . . . Level 4 . | . . . . . . . . . . . . . . . . . . . . . . . . . . . . . Level 5 27 | . . . . . . . . . . . . . . . . . . . . . . . . . . 43 97 . High Security 6 | . . . . . . . . . . . . . . . . . . . . . . . . . 60 56 2 . Max Security . | . . . . . . . . . . . . . . . . . . . . . . . . . . . . . Peak Influence 8806 | 5 198 . 250 136 174 292 . . . . 718 . . . . 90 . . . . 375 509 285 373 8806 5280 3640 . Initial 5280 | . . . . 87 43 199 . . . . 318 . . . . . . . . . 102 118 273 . 189 5280 3235 . Average 607 | . 40 . 174 77 57 160 . . . . 425 . . . . 27 . . . . 213 262 95 184 2688 5054 3477 . Influence Increases 19771 | 5 418 . 725 429 399 629 630 471 . 815 858 320 220 5 249 352 145 85 404 405 435 809 188 715 8401 305 796 558 Destroy 0b10 Robot/C 10720 | . 220 . 420 180 200 300 460 300 . 400 360 220 120 . 200 180 120 60 280 340 140 400 80 320 4820 160 440 . Destroy 0b10 Robot/NC 530 | 5 20 . 25 15 60 10 . . . 10 40 . . 5 . 35 . . 5 20 20 35 5 40 150 10 20 . Destroy Leader 1598 | . 50 . 102 80 . 60 20 20 . 30 72 40 10 . . 44 10 10 . 30 30 62 40 64 720 42 62 . Allied During Kill 80 | . . . . . . . 15 16 . . . . . . 4 . . 15 14 . . . . . . . 16 . Successful Hack 253 | . 20 . 16 16 35 8 . . . . 21 . . . . 5 . . . . . . . . 54 33 45 . Select Force Hacks 210 | . 60 . 30 30 90 . . . . . . . . . . . . . . . . . . . . . . . Disable Machine 1530 | . 15 . 30 90 . 45 . . . . 165 . . . . 15 . . . . 75 135 15 105 525 30 105 180 Destroy Structure 3275 | . 33 . 57 18 14 11 . . . . 170 . . . . 58 . . . . 170 132 33 156 1952 30 78 363 Advance Influence 150 | . . . . . . 150 . . . . . . . . . . . . . . . . . . . . . . Partial Spotted 90 | . . . . . . . . . . . . . . . . . . . . . . 45 15 . 15 . . 15 Lose Combat Pursuer 1335 | . . . 45 . . 45 135 135 . 375 30 60 90 . 45 15 15 . 105 15 . . . 30 165 . 30 . Influence Decreases 19900 | 5 272 146 518 524 394 460 671 637 79 309 692 901 304 12 249 274 223 85 215 441 377 533 675 378 604 4051 2190 3681 Entered New Map 10750 | . . 71 . 120 69 68 106 47 79 . 188 249 19 7 . . 30 . . 189 51 93 214 . 148 3521 1820 3661 Time Decay 7944 | 5 272 75 478 404 325 362 545 540 . 299 464 641 275 5 239 274 193 70 145 252 326 440 431 378 356 80 70 . Lost Part 541 | . . . 40 . . 30 20 30 . 10 40 11 10 . 10 . . . 30 . . . 20 . 90 . 180 20 Lost Ally 215 | . . . . . . . . 20 . . . . . . . . . 15 40 . . . 10 . 10 . 120 . Purge Threat 450 | . . . . . . . . . . . . . . . . . . . . . . . . . . 450 . . Squads Dispatched 100 | . 4 . 2 2 . 3 . . . 1 5 . . . . 5 . . . . 1 6 2 8 48 9 4 . Investigation 12 | . 3 . 1 1 . . . . . . 2 . . . . . . . . . . 1 2 1 . 1 . . Extermination 17 | . . . . . . 2 . . . . 2 . . . . 2 . . . . 1 4 . 4 2 . . . Reinforcement 12 | . 1 . 1 1 . 1 . . . . 1 . . . . 3 . . . . . 1 . 1 2 . . . Assault 59 | . . . . . . . . . . 1 . . . . . . . . . . . . . 2 44 8 4 . Garrison . | . . . . . . . . . . . . . . . . . . . . . . . . . . . . . Intercept . | . . . . . . . . . . . . . . . . . . . . . . . . . . . . . Searches Triggered . | . . . . . . . . . . . . . . . . . . . . . . . . . . . . . Construction Impeded 1 | . . . . . . . . . . . 1 . . . . . . . . . . . . . . . . . Haulers Reinforced 2 | . . . . . . . . . . . . . . . . 2 . . . . . . . . . . . . Active Scanning Responses . | . . . . . . . . . . . . . . . . . . . . . . . . . . . . . Cargo Convoy Interrupts . | . . . . . . . . . . . . . . . . . . . . . . . . . . . . . Stealth | -11 -10 -10 -8 -8 -8 -6 -6 -6 -6 -5 -5 -5 -5 -5 -4 -4 -4 -4 -4 -3 -3 -3 -2 -2 -2 -1 -1 -1 --------- Run | Yrd Mat Sub Mat Sto Rec Fac Low Low Dat Pro Fac Upp Upp Zhi Pro Fac Upp Upp War Pro Res Qua Res Tes Frg Acc Com Ac0 Distress Signals 55 | . . . 3 2 1 . . . . . . . . . . 1 . . 2 . . . 9 2 4 4 27 . Communications Jammed 88 | . . . 2 . . . . . . . 1 . . . . 30 . . . 1 . 38 . 14 2 . . . Distress Signals 57 | . . . 2 . . . . . . . 1 . . . . . . . . . . 38 . 14 2 . . . Times Spotted 905 | . 12 16 37 15 7 24 30 23 . 39 27 20 12 . 10 18 9 5 106 15 9 28 23 35 270 10 32 73 Peak Tracking Total 30 | . 4 2 4 4 2 5 9 7 . 9 5 4 4 . 9 5 9 3 11 5 5 5 9 5 30 6 11 5 Tactical Retreats 67 | . . . 2 . 1 2 5 8 . 9 2 5 6 . 1 3 2 1 5 1 . . . 3 6 . 2 3 Traps | -11 -10 -10 -8 -8 -8 -6 -6 -6 -6 -5 -5 -5 -5 -5 -4 -4 -4 -4 -4 -3 -3 -3 -2 -2 -2 -1 -1 -1 ------- Run | Yrd Mat Sub Mat Sto Rec Fac Low Low Dat Pro Fac Upp Upp Zhi Pro Fac Upp Upp War Pro Res Qua Res Tes Frg Acc Com Ac0 Traps Triggered 29 | . 1 1 . . . 1 . . . . . . . . . 3 . . . . 1 1 . 2 12 . 7 . Indirectly 1 | . . . . . . . . . . . . . . . . . . . . . . . . . 1 . . . Trap Hack Attempts . | . . . . . . . . . . . . . . . . . . . . . . . . . . . . . Triggered . | . . . . . . . . . . . . . . . . . . . . . . . . . . . . . Disarmed . | . . . . . . . . . . . . . . . . . . . . . . . . . . . . . Reprogrammed . | . . . . . . . . . . . . . . . . . . . . . . . . . . . . . Reused . | . . . . . . . . . . . . . . . . . . . . . . . . . . . . . Traps Extracted . | . . . . . . . . . . . . . . . . . . . . . . . . . . . . . Installed . | . . . . . . . . . . . . . . . . . . . . . . . . . . . . . Triggered . | . . . . . . . . . . . . . . . . . . . . . . . . . . . . . Machines | -11 -10 -10 -8 -8 -8 -6 -6 -6 -6 -5 -5 -5 -5 -5 -4 -4 -4 -4 -4 -3 -3 -3 -2 -2 -2 -1 -1 -1 ---------- Run | Yrd Mat Sub Mat Sto Rec Fac Low Low Dat Pro Fac Upp Upp Zhi Pro Fac Upp Upp War Pro Res Qua Res Tes Frg Acc Com Ac0 Machines Disabled 128 | . 1 1 2 6 . 3 3 4 . . 11 . . . . 1 . . 1 . 5 9 1 7 51 2 7 13 Max in Single Turn 5 | . 1 1 1 1 . 1 2 2 . . 5 . . . . 1 . . 1 . 2 1 1 2 3 1 1 1 Garrison Access 5 | . . . . . . . . . . . 1 . . . . . . . . . 1 . 1 1 1 . . . Machines Repaired . | . . . . . . . . . . . . . . . . . . . . . . . . . . . . . Machines Dismantled 1 | . . . . 1 . . . . . . . . . . . . . . . . . . . . . . . . Machines Sabotaged . | . . . . . . . . . . . . . . . . . . . . . . . . . . . . . Overloaded Fab Kills . | . . . . . . . . . . . . . . . . . . . . . . . . . . . . . Hacking | -11 -10 -10 -8 -8 -8 -6 -6 -6 -6 -5 -5 -5 -5 -5 -4 -4 -4 -4 -4 -3 -3 -3 -2 -2 -2 -1 -1 -1 --------- Run | Yrd Mat Sub Mat Sto Rec Fac Low Low Dat Pro Fac Upp Upp Zhi Pro Fac Upp Upp War Pro Res Qua Res Tes Frg Acc Com Ac0 Machines Accessed 105 | . 7 2 7 8 11 3 2 . 4 . 8 1 1 8 . 4 1 . 2 . 5 9 3 5 5 4 3 2 Terminals 57 | . 5 . 5 7 6 3 . . . . 3 . . . . 4 . . . . 1 7 1 5 4 4 2 . Fabricators 2 | . . . . . . . . . . . 1 . . . . . . . . . 1 . . . . . . . Repair Stations 2 | . . . 1 . . . . . . . 1 . . . . . . . . . . . . . . . . . Recycling Units 11 | . 2 . 1 1 4 . . . . . 1 . . . . . . . . . 1 . . . . . 1 . Scanalyzers 3 | . . . . . . . . . . . 1 . . . . . . . . . 1 1 . . . . . . Garrison Access 6 | . . . . . . . . . . . 1 . . . . . . . . . 1 1 2 . 1 . . . Total Hacks 307 | . 22 6 14 18 37 8 2 . 32 . 15 1 1 47 . 12 1 . 5 . 9 22 4 6 8 11 7 19 Successful 207 | . 14 6 8 8 23 1 2 . 32 . 6 1 1 47 . 5 1 . 5 . 3 5 2 . 4 8 6 19 Failed 99 | . 7 . 6 10 14 7 . . . . 9 . . . . 7 . . . . 6 17 2 6 4 3 1 . Catastrophic 23 | . . . 2 1 1 4 . . . . 2 . . . . 3 . . . . 2 5 . 2 . 1 . . Database Lockouts 1 | . 1 . . . . . . . . . . . . . . . . . . . . . . . . . . . Manual 106 | . 17 . 11 13 24 7 . . . . 2 . . . . 3 . . 1 . . 6 2 6 1 6 7 . Terminals 137 | . 18 . 10 17 22 8 . . . . 6 . . . . 12 . . . . 2 14 1 6 6 11 4 . Fabricators 5 | . . . . . . . . . . . 3 . . . . . . . . . 2 . . . . . . . Repair Stations 3 | . . . 2 . . . . . . . 1 . . . . . . . . . . . . . . . . . Recycling Units 26 | . 4 . 2 1 13 . . . . . 2 . . . . . . . . . 1 . . . . . 3 . Scanalyzers 10 | . . . . . . . . . . . 2 . . . . . . . . . 2 6 . . . . . . Garrison Access 10 | . . . . . . . . . . . 1 . . . . . . . . . 2 2 3 . 2 . . . Terminal Hacks 143 | . 4 6 . 5 6 1 2 . 32 . 1 1 1 47 . 2 1 . 5 . 1 2 . . 2 5 . 19 Record 71 | . . 5 . . . . . . 11 . . . . 35 . . . . 4 . . . . . . . . 16 Part Schematic 19 | . . . . . 1 . . . 13 . 1 . . 4 . . . . . . . . . . . . . . Robot Schematic 5 | . . . . . . . . . 5 . . . . . . . . . . . . . . . . . . . Robot Analysis 9 | . 2 . . 1 2 . . . . . . . . 4 . . . . . . . . . . . . . . Prototype ID Bank 10 | . 1 . . 2 . . . . 3 . . . . 4 . . . . . . . . . . . . . . Open Door 7 | . . . . 1 . . 2 . . . . 1 1 . . . 1 . 1 . . . . . . . . . Branch Access Points 3 | . . . . . . 1 . . . . . . . . . 1 . . . . . . . . . 1 . . Terminal Index 2 | . . . . . 1 . . . . . . . . . . . . . . . . . . . . 1 . . Fabricator Index 1 | . . . . . . . . . . . . . . . . . . . . . 1 . . . . . . . Alert Level 1 | . . . . . . . . . . . . . . . . . . . . . . 1 . . . . . . Unreport Threat 3 | . . . . . . . . . . . . . . . . . . . . . . . . . . 3 . . Locate Traps 1 | . 1 . . . . . . . . . . . . . . . . . . . . . . . . . . . Recall Extermination 1 | . . . . . . . . . . . . . . . . . . . . . . 1 . . . . . . Registered Components 1 | . . . . 1 . . . . . . . . . . . . . . . . . . . . . . . . Zone Layout 2 | . . . . . . . . . . . . . . . . 1 . . . . . . . . 1 . . . Proto ID Catalog 2 | . . 1 . . . . . . . . . . . . . . . . . . . . . . 1 . . . Release Object 2 | . . . . . 2 . . . . . . . . . . . . . . . . . . . . . . . Gate Test 138-A 1 | . . . . . . . . . . . . . . . . . . . . . . . . . . . . 1 Gate Test 138-B 2 | . . . . . . . . . . . . . . . . . . . . . . . . . . . . 2 Fabricator Hacks 2 | . . . . . . . . . . . 1 . . . . . . . . . 1 . . . . . . . Load Schematic 2 | . . . . . . . . . . . 1 . . . . . . . . . 1 . . . . . . . Repair Station Hacks 2 | . . . 2 . . . . . . . . . . . . . . . . . . . . . . . . . Scan Component 1 | . . . 1 . . . . . . . . . . . . . . . . . . . . . . . . . Repair 1 | . . . 1 . . . . . . . . . . . . . . . . . . . . . . . . . Recycling Unit Hacks 4 | . . . . . 3 . . . . . 1 . . . . . . . . . . . . . . . . . Retrieve Components 4 | . . . . . 3 . . . . . 1 . . . . . . . . . . . . . . . . . Scanalyzer 4 | . . . . . . . . . . . 1 . . . . . . . . . . 3 . . . . . . Insert Component 4 | . . . . . . . . . . . 1 . . . . . . . . . . 3 . . . . . . Garrison Access Hacks 4 | . . . . . . . . . . . 1 . . . . . . . . . 1 . 1 . 1 . . . Seal Access 4 | . . . . . . . . . . . 1 . . . . . . . . . 1 . 1 . 1 . . . Unauthorized Hacks 48 | . 10 . 6 3 14 . . . . . 1 . . . . 3 . . . . . . 1 . 1 3 6 . Terminals 37 | . 8 . 5 2 10 . . . . . . . . . . 3 . . . . . . 1 . 1 3 4 . Track 5 | . . . . . . . . . . . . . . . . 2 . . . . . . . . . 1 2 . Assimilate 1 | . . . . . . . . . . . . . . . . . . . . . . . . . 1 . . . Botnet 13 | . 3 . 2 . 4 . . . . . . . . . . 1 . . . . . . 1 . . 2 . . Disrupt 2 | . . . . . . . . . . . . . . . . . . . . . . . . . . . 2 . Skim 16 | . 5 . 3 2 6 . . . . . . . . . . . . . . . . . . . . . . . Fabricators . | . . . . . . . . . . . . . . . . . . . . . . . . . . . . . Repair Stations 1 | . . . . . . . . . . . 1 . . . . . . . . . . . . . . . . . Patch 1 | . . . . . . . . . . . 1 . . . . . . . . . . . . . . . . . Recycling Units 10 | . 2 . 1 1 4 . . . . . . . . . . . . . . . . . . . . . 2 . Reject 1 | . . . . . . . . . . . . . . . . . . . . . . . . . . . 1 . Mask 2 | . . . . . 1 . . . . . . . . . . . . . . . . . . . . . 1 . Tunnel 7 | . 2 . 1 1 3 . . . . . . . . . . . . . . . . . . . . . . . Scanalyzers . | . . . . . . . . . . . . . . . . . . . . . . . . . . . . . Garrison Access . | . . . . . . . . . . . . . . . . . . . . . . . . . . . . . Data Cores Recovered 2 | . . . 1 1 . . . . . . . . . . . . . . . . . . . . . . . . Used . | . . . . . . . . . . . . . . . . . . . . . . . . . . . . . Hacking Detections 66 | . 5 . 6 6 6 3 . . . . 6 . . . . 4 . . . . 4 9 2 5 4 4 2 . Full Trace Events 4 | . . . . . . . . . . . 1 . . . . . . . . . . 1 1 . . 1 . . Feedback Events . | . . . . . . . . . . . . . . . . . . . . . . . . . . . . . Feedback Blocked . | . . . . . . . . . . . . . . . . . . . . . . . . . . . . . Robot Schematics Acquired 5 | . . . . . . . . . 5 . . . . . . . . . . . . . . . . . . . Robots Built . | . . . . . . . . . . . . . . . . . . . . . . . . . . . . . Authchips . | . . . . . . . . . . . . . . . . . . . . . . . . . . . . . Time . | . . . . . . . . . . . . . . . . . . . . . . . . . . . . . Total Robot Build Rating . | . . . . . . . . . . . . . . . . . . . . . . . . . . . . . Part Schematics Acquired 20 | . . . . . 1 . . . 13 . 1 . . 4 . . . . . . . . . . 1 . . . Parts Built . | . . . . . . . . . . . . . . . . . . . . . . . . . . . . . Authchips . | . . . . . . . . . . . . . . . . . . . . . . . . . . . . . Time . | . . . . . . . . . . . . . . . . . . . . . . . . . . . . . Total Part Build Rating . | . . . . . . . . . . . . . . . . . . . . . . . . . . . . . Parts Repaired 1 | . . . 1 . . . . . . . . . . . . . . . . . . . . . . . . . Time 16 | . . . 16 . . . . . . . . . . . . . . . . . . . . . . . . . Parts Recycled . | . . . . . . . . . . . . . . . . . . . . . . . . . . . . . Recycled Matter . | . . . . . . . . . . . . . . . . . . . . . . . . . . . . . Retrieved Matter . | . . . . . . . . . . . . . . . . . . . . . . . . . . . . . Retrieved Components 15 | . . . . . 14 . . . . . 1 . . . . . . . . . . . . . . . . . Parts Scanalyzed . | . . . . . . . . . . . . . . . . . . . . . . . . . . . . . Part Schematics Acquired . | . . . . . . . . . . . . . . . . . . . . . . . . . . . . . Parts Damaged . | . . . . . . . . . . . . . . . . . . . . . . . . . . . . . Bothacking | -11 -10 -10 -8 -8 -8 -6 -6 -6 -6 -5 -5 -5 -5 -5 -4 -4 -4 -4 -4 -3 -3 -3 -2 -2 -2 -1 -1 -1 ------------ Run | Yrd Mat Sub Mat Sto Rec Fac Low Low Dat Pro Fac Upp Upp Zhi Pro Fac Upp Upp War Pro Res Qua Res Tes Frg Acc Com Ac0 Used RIF Installer . | . . . . . . . . . . . . . . . . . . . . . . . . . . . . . Robots Hacked . | . . . . . . . . . . . . . . . . . . . . . . . . . . . . . Non-combat . | . . . . . . . . . . . . . . . . . . . . . . . . . . . . . Combat . | . . . . . . . . . . . . . . . . . . . . . . . . . . . . . Robot Hacks Applied . | . . . . . . . . . . . . . . . . . . . . . . . . . . . . . Relay Couplers Released 6 | . . . . . . . . . . . . . . . . . . . . . . . . 3 3 . . . Machine Destruction 3 | . . . . . . . . . . . . . . . . . . . . . . . . 3 . . . . Programmers 3 | . . . . . . . . . . . . . . . . . . . . . . . . . 3 . . . Fabnet Peak Effective % . | . . . . . . . . . . . . . . . . . . . . . . . . . . . . . Robots Rewired 15 | . . . . . 1 . 2 . . 2 . . . . 2 . . 3 5 . . . . . . . . . Allies Hacked 1 | . . . . . . . . . . . . . . . . . . . 1 . . . . . . . . . Hacks Repelled . | . . . . . . . . . . . . . . . . . . . . . . . . . . . . . Allies | -11 -10 -10 -8 -8 -8 -6 -6 -6 -6 -5 -5 -5 -5 -5 -4 -4 -4 -4 -4 -3 -3 -3 -2 -2 -2 -1 -1 -1 -------- Run | Yrd Mat Sub Mat Sto Rec Fac Low Low Dat Pro Fac Upp Upp Zhi Pro Fac Upp Upp War Pro Res Qua Res Tes Frg Acc Com Ac0 Total Allies 16 | . . . . . 1 . 2 . . 2 . . . . 2 . . 3 5 . . . . . 1 . . . Largest Group 5 | . . . . . 1 1 2 2 . 2 . . . . 2 . . 3 5 . . . . . 1 . . . Highest-Rated Group 275 | . . . . . 27 27 60 60 . 60 . . . . 97 . . 141 275 . . . . . 45 . . . Highest-Rated Ally 64 | . . . . . 27 27 30 30 . 30 . . . . 49 . . 47 64 . . . . . 45 . . . Total Orders 10 | . . . . . . . . . . 1 . . . . . . . . 1 . . . 3 . . . 5 . STAY 2 | . . . . . . . . . . 1 . . . . . . . . 1 . . . . . . . . . EXPLORE 3 | . . . . . . . . . . . . . . . . . . . . . . . 3 . . . . . RETURN 5 | . . . . . . . . . . . . . . . . . . . . . . . . . . . 5 . Ally Attacks 136 | . . . . . . . 8 17 . . . . . . . . . 21 43 . . . . . . . 47 . Total Damage 5841 | . . . . . . . 317 524 . . . . . . . . . 702 1289 . . . . . . . 3009 . Kills 13 | . . . . . . . 2 3 . . . . . . . . . 2 5 . . . . . . . 1 . Allies Corrupted 1 | . . . . . . . . . . . . . . . . . . . 1 . . . . . . . . . Allies Melted . | . . . . . . . . . . . . . . . . . . . . . . . . . . . . . Intel | -11 -10 -10 -8 -8 -8 -6 -6 -6 -6 -5 -5 -5 -5 -5 -4 -4 -4 -4 -4 -3 -3 -3 -2 -2 -2 -1 -1 -1 ------- Run | Yrd Mat Sub Mat Sto Rec Fac Low Low Dat Pro Fac Upp Upp Zhi Pro Fac Upp Upp War Pro Res Qua Res Tes Frg Acc Com Ac0 Active Infowar (turns) 30458 | 33 322 1235 1329 963 234 574 1882 1269 . 1592 991 1322 1075 99 1064 702 1163 1054 711 936 578 1035 1476 1050 986 329 5301 1153 Optics 1069 | . . . . . . . . . . . . . . . . . . . . . . . . . . . . 1069 Sensors 15174 | . . . . . . 1 1882 1269 . 1397 763 1322 1075 99 256 470 1145 1016 696 926 550 456 882 734 235 . . . A.S.S. 4955 | . . . . . . . . . . . . . . . . . . . . . . . . . . . 4955 . IFF 1064 | . . . . . . . . . . 193 . . . . 808 63 . . . . . . . . . . . . Terrain 3481 | . . . 152 . . . . . . . . . . . . 24 . 7 648 . 48 556 1466 398 98 . . 84 Seismic 2682 | 33 322 1235 1092 . . . . . . . . . . . . . . . . . . . . . . . . . Machine Analysis 573 | . . . . . . 573 . . . . . . . . . . . . . . . . . . . . . . Cloaking 1371 | . . . . . . . . . . . . . . . . . . . . . . . . . 696 329 346 . Jamming 4147 | . . . 237 963 234 . . . . 2 234 . . . . 177 . . 2 10 . 567 717 715 289 . . . ECM 311 | . . . . . . . . . . . . . . . . 84 18 38 . . . . . 153 18 . . . Robot Analysis Total 9 | . 2 . . 1 2 . . . . . . . . 4 . . . . . . . . . . . . . . Derelict Logs Recovered 16 | . . 3 . . . . 1 2 . 1 . 2 2 . 2 . 1 2 . . . . . . . . . . Drone Launches 14 | . . . . . . . . . . . . . . . . . . . . . . . 3 . . . 11 . Drone Recoveries 7 | . . . . . . . . . . . . . . . . . . . . . . . 2 . . . 5 . Exploration | -11 -10 -10 -8 -8 -8 -6 -6 -6 -6 -5 -5 -5 -5 -5 -4 -4 -4 -4 -4 -3 -3 -3 -2 -2 -2 -1 -1 -1 ------------- Run | Yrd Mat Sub Mat Sto Rec Fac Low Low Dat Pro Fac Upp Upp Zhi Pro Fac Upp Upp War Pro Res Qua Res Tes Frg Acc Com Ac0 Turns Passed 49213 | 165 1522 3630 1329 963 3384 837 3042 2424 103 2298 1178 2975 1437 269 1434 991 1495 1306 1510 1319 730 1089 1520 1050 2033 396 6703 2081 Spaces Moved 34979 | 85 719 1732 650 363 1161 676 1693 1295 81 1433 900 1453 1140 157 1138 724 1092 1160 1309 1108 434 1067 1173 894 2110 499 5982 2751 Core 3 | 3 . . . . . . . . . . . . . . . . . . . . . . . . . . . . Treads 15401 | 82 719 1732 73 225 646 298 . . . . . 1439 1140 157 1138 724 1092 1160 945 . . . 197 894 292 . 2448 . Legs 10070 | . . . . . 116 213 986 . . . . . . . . . . . 364 1108 434 6 307 . 556 . 3229 2751 Wheels 1207 | . . . 577 138 399 93 . . . . . . . . . . . . . . . . . . . . . . Hover 6160 | . . . . . . . 707 1295 81 1433 900 14 . . . . . . . . . 1061 669 . . . . . Flight 2138 | . . . . . . 72 . . . . . . . . . . . . . . . . . . 1262 499 305 . Fastest Speed 38 | 50 160 160 100 190 118 51 73 88 125 84 84 84 98 98 98 98 98 98 91 91 91 61 61 79 38 41 41 41 Average Speed 94 | 156 160 188 156 224 191 84 113 124 125 122 93 114 112 98 98 98 98 98 93 91 91 61 103 79 56 41 41 55 Slowest Speed 330 | 160 160 250 260 246 330 118 125 125 125 125 125 125 115 98 98 98 98 135 98 91 91 91 177 79 79 41 74 72 Overloaded Moves 256 | . . . . . . . . . . 76 154 6 . . . . . . . . . . . . 20 . . . Propulsion Burnouts . | . . . . . . . . . . . . . . . . . . . . . . . . . . . . . Robots Hopped 2 | . . . . . . . . . . . . . . . . . . . . . . . . . 1 1 . . Potential Cave-ins 60 | . . . . . . . . . . . . . . . . . . . . . . . 3 . 14 . . 43 Cave-ins Triggered 9 | . . . . . . . . . . . . . . . . . . . . . . . . 1 2 . 1 5 Teleports 4 | . . . . . . . . . . . . . . . . . . . . . . . . . 1 . 1 2 Exploration Rate (%) 69 | 6 95 80 51 60 99 24 98 98 69 98 25 97 98 62 99 14 97 92 90 95 14 84 48 77 54 16 86 92 Regions Visited 28 Branch Regions 20 Pre-discovered Areas 16 | . 2 1 1 1 5 . . 1 1 . . . . 3 . . 1 . . . . . . . . . . . Known Exits Taken 24 | . . 1 1 1 . 1 1 1 1 1 1 1 1 1 1 1 1 1 1 1 1 1 1 1 1 1 . . Unknown Exits Taken 4 | 1 1 . . . 1 . . . . . . . . . . . . . . . . . . . . . 1 . Scrap Searched 49 | . . 8 . . . . 15 4 . 3 . 4 4 . 1 . 4 3 . 3 . . . . . . . . Spaces Dug 305 | . 7 9 10 7 3 9 1 2 . . 10 2 . . 7 12 3 3 6 47 6 25 8 20 20 5 11 72 Terrain Destroyed 1859 | . 52 75 56 17 13 11 8 5 . 6 96 8 5 . 23 29 8 5 94 346 118 78 17 71 545 10 32 131 Melee 33 | . . . . . . 9 . . . . . . . . . . . . . . 4 20 . . . . . . Projectile 808 | . . 20 17 17 13 2 3 3 . . 28 8 5 . 23 29 8 5 6 . 2 58 17 31 350 10 30 123 AOE 1017 | . 52 55 39 . . . 4 2 . 6 68 . . . . . . . 88 346 112 . . 40 195 . 2 8 Terrain Rammed . | . . . . . . . . . . . . . . . . . . . . . . . . . . . . . Walls Destroyed . | . . . . . . . . . . . . . . . . . . . . . . . . . . . . . Machines Disabled . | . . . . . . . . . . . . . . . . . . . . . . . . . . . . . Actions | -11 -10 -10 -8 -8 -8 -6 -6 -6 -6 -5 -5 -5 -5 -5 -4 -4 -4 -4 -4 -3 -3 -3 -2 -2 -2 -1 -1 -1 --------- Run | Yrd Mat Sub Mat Sto Rec Fac Low Low Dat Pro Fac Upp Upp Zhi Pro Fac Upp Upp War Pro Res Qua Res Tes Frg Acc Com Ac0 Total 49204 | 103 1042 1940 854 440 2219 841 2770 2057 82 1891 1147 2703 1279 269 1422 936 1492 1308 1573 1392 744 1324 1471 1175 2771 674 10073 3212 Wait 10277 | . 239 37 35 8 914 17 937 665 . 339 62 1105 98 89 217 65 358 99 134 231 240 50 201 122 74 111 3780 50 Move 34940 | 84 718 1731 649 362 1160 675 1692 1294 80 1432 899 1452 1139 156 1137 723 1091 1159 1308 1107 433 1066 1172 893 2106 496 5981 2745 Hop 2 | . . . . . . . . . . . . . . . . . . . . . . . . . 1 1 . . Pick Up 557 | 6 21 11 32 7 17 29 26 20 . 7 37 29 8 7 6 20 3 3 25 7 13 14 23 21 84 16 45 20 Fast Attach 179 | 7 3 6 15 2 1 5 7 1 . 5 6 5 2 2 . 5 2 . 8 1 2 5 5 5 23 2 30 24 Attach 128 | . 1 6 4 1 1 10 4 7 1 3 11 8 1 . 1 2 . . 2 2 2 2 4 4 21 7 19 4 Detach 56 | . . . . . 2 5 3 3 . 2 5 6 . . . . . . . 1 2 1 3 2 8 3 10 . Swap 467 | 1 14 33 26 8 3 12 16 14 1 24 29 19 5 2 9 28 10 9 24 10 13 28 12 26 42 6 21 22 Drop 634 | . 16 11 27 11 26 27 36 16 . 11 39 33 9 8 6 24 6 3 26 8 14 19 30 27 89 14 64 34 Fire 1738 | 5 24 105 66 29 91 43 35 37 . 51 58 46 17 5 34 66 22 8 15 25 15 99 21 62 312 18 121 308 Melee 62 | . . . . . . 17 . . . . . . . . . . . . . . 5 40 . . . . . . Ram 2 | . . . . . . . . . . . 1 . . . . . . . . . . . . . 1 . . . Kick 6 | . . . . . . . . . . . . . . . . . . . . . 5 . . . 1 . . . Crush 30 | . 6 . . 4 . 1 . . . . . . . . . 3 . . . . . . . 13 2 . 1 . Escape Stasis 12 | . . . . . . . . . . . . . . . . . . . . . . . . . 7 . . 5 Rewire 106 | . . . . . 4 . 14 . . 17 . . . . 12 . . 27 31 . . . . . . . 1 . Trap . | . . . . . . . . . . . . . . . . . . . . . . . . . . . . . Miscellaneous 8 | . . . . 8 . . . . . . . . . . . . . . . . . . . . . . . . Route ------- -11/Scrapyard -10/Materials (discovered 5 exits: [*Mat x3] / [*Min] / *Sub) -10/Subcaves (discovered 3 exits: *Mat x2 / [*Scr]) -8/Materials (discovered 4 exits: *Fac x3 / *Sto) -8/Storage (discovered 2 exits: Fac / *Rec) -8/Recycling -6/Factory (discovered 5 exits: *Fac x3 / *Low x2) -6/Lower Caves -6/Lower Caves (discovered 2 exits: *Fac / *Dat) -6/Data Miner -5/Proximity Caves -5/Factory (discovered 3 exits: *Upp x2 / [*Ext]) -5/Upper Caves -5/Upper Caves (discovered 2 exits: *Fac / *Zhi) -5/Zhirov -4/Proximity Caves -4/Factory (discovered 2 exits: *Upp x2) -4/Upper Caves -4/Upper Caves (discovered 2 exits: *Res / *War) -4/Warlord -3/Proximity Caves -3/Research (discovered 3 exits: *Res / *Qua x2) -3/Quarantine -2/Research (discovered 3 exits: *Acc / *Tes x2) -2/Testing (discovered 3 exits: *Acc / [*Sec] / *Frg) -2/Protoforge -1/Access -1/Command (discovered 3 exits: [*Sur x2] / *Ac0) -1/Access_0 0b11 Command History --------- Turn | Location | Event 8 | -11/Scrapyard | Discovered new exit (range 16) 166 | -11/Scrapyard | Entered Materials 167 | -10/Materials | Met a group of wandering Federalists 305 | -10/Materials | Build established: Mutant 308 | -10/Materials | Central database locked down 354 | -10/Materials | Discovered new exit (range 15) 687 | -10/Materials | Discovered new exit (range 8) 778 | -10/Materials | Discovered new exit (range 6) 1209 | -10/Materials | Discovered new exit (range 16) 1429 | -10/Materials | Learned 4 Subcaves zone layouts 1458 | -10/Materials | Discovered new exit (range 9) 1478 | -10/Materials | Learned 2 Storage zone layouts 1551 | -10/Materials | Learned Storage stockpile data 1574 | -10/Materials | Learned Storage trap positions 1586 | -10/Materials | Loaded intel: 14 trap records 1640 | -10/Materials | Learned 2 Storage zone layouts 1681 | -10/Materials | Learned location of 1 exit from Storage 1688 | -10/Materials | Entered Subcaves 1689 | -10/Subcaves | Continued accompanying wandering Federalists (5) 1689 | -10/Subcaves | Identified exit to Materials 1931 | -10/Subcaves | Wandering Federalist uncovered a shortcut to Scraptown 2790 | -10/Subcaves | Shifting Twisted Machinery released Sub. Beam Cannon 2880 | -10/Subcaves | Shifting Twisted Machinery released Flamer 3044 | -10/Subcaves | Core integrity fell below 50% 3175 | -10/Subcaves | Visited Clippyterm 3180 | -10/Subcaves | Learned Factory trap positions 3180 | -10/Subcaves | Learned Factory stockpile data 3384 | -10/Subcaves | A swath of the cavern ceiling suddenly collapsed 3389 | -10/Subcaves | A swath of the cavern ceiling suddenly collapsed 4429 | -10/Subcaves | Shifting Twisted Machinery released Sub. Power Source 4457 | -10/Subcaves | Shifting Twisted Machinery released Mak. System Restoration Module 4681 | -10/Subcaves | Learned location of Zion (-7) 4773 | -10/Subcaves | Disturbed a concealed Subdweller 4848 | -10/Subcaves | A Subdweller sparked back to life 4874 | -10/Subcaves | Learned 8 Materials zone layouts 4928 | -10/Subcaves | A Subdweller sparked back to life 4928 | -10/Subcaves | A Subdweller sparked back to life 4945 | -10/Subcaves | Core integrity fell below 20% 4998 | -10/Subcaves | Found Prototype Device 5084 | -10/Subcaves | Visited 4L-MR0's lab 5096 | -10/Subcaves | Identified Power Bank 5113 | -10/Subcaves | Found Arachnoskeleton 5237 | -10/Subcaves | Learned Materials non-interactive machine intel 5288 | -10/Subcaves | Ambushed by Subdweller buried in earth 5318 | -10/Subcaves | Entered Materials 5318 | -8/Materials | Evolved 4 slots: Propulsion x2, Utility x2 5319 | -8/Materials | Identified exit to Factory 5320 | -8/Materials | Loaded intel: 28 non-interactive machine locations 5502 | -8/Materials | Repaired Spk. Treads 5918 | -8/Materials | Discovered new exit (range 15) 5953 | -8/Materials | Identified exit to Storage 6193 | -8/Materials | Lost 3 parts (1p2n) 6647 | -8/Materials | Entered Storage 6648 | -8/Storage | Identified exit to Recycling 6650 | -8/Storage | Loaded intel: 9 trap records 7603 | -8/Storage | Used back door to open Recycling access 7610 | -8/Storage | Entered Recycling 7827 | -8/Recycling | Entered Scraplab 7840 | -8/Recycling | Found Prototype Device 7840 | -8/Recycling | Identified Scrap Engine 8427 | -8/Recycling | Attached Power Bank, gained temporary slots: Power x3 9166 | -8/Recycling | Build established: Construct 9174 | -8/Recycling | Discovered new exit (range 15) 9596 | -8/Recycling | Learned location of Lower Caves (-7) 9673 | -8/Recycling | Learned location of 2 exits from Lower Caves 9741 | -8/Recycling | Learned 12 Factory zone layouts 9797 | -8/Recycling | Learned Factory machine intel 9880 | -8/Recycling | Learned location of 1 exit from Extension 9928 | -8/Recycling | Learned Factory trap positions 9985 | -8/Recycling | Learned 2 Lower Caves zone layouts 10994 | -8/Recycling | Entered Factory 10994 | -6/Factory | Accompanied by 1 ally 10994 | -6/Factory | Evolved 4 slots: Propulsion x2, Utility x1, Weapon x1 10995 | -6/Factory | Identified exit to Factory 10996 | -6/Factory | Identified exit to Lower Caves 10997 | -6/Factory | Loaded intel: 115 trap records 10999 | -6/Factory | Loaded intel: 299 machine locations 11413 | -6/Factory | Discovered exit to Lower Caves (range 16) 11761 | -6/Factory | Discovered exit to Factory (range 13) 11831 | -6/Factory | Entered Lower Caves 11832 | -6/Lower Caves | Encountered a Warlord checkpoint 11832 | -6/Lower Caves | Identified exit to Lower Caves 12350 | -6/Lower Caves | Found Prototype Device 13772 | -6/Lower Caves | Attracted the attention of an 0b10 outpost 14211 | -6/Lower Caves | Attracted the attention of an 0b10 checkpoint 14243 | -6/Lower Caves | Learned Factory stockpile data 14296 | -6/Lower Caves | Attacked by a delusional Derelict stockpiling parts 14873 | -6/Lower Caves | Entered another Lower Caves area 14873 | -6/Lower Caves | Accompanied by 2 allies 14874 | -6/Lower Caves | Identified exit to Data Miner 15217 | -6/Lower Caves | Discovered exit to Factory (range 9) 15575 | -6/Lower Caves | Attracted the attention of an 0b10 checkpoint 16031 | -6/Lower Caves | Attracted the attention of an 0b10 base 17075 | -6/Lower Caves | Spotted B-75 Beast 17132 | -6/Lower Caves | Destroyed B-75 Beast 17297 | -6/Lower Caves | Entered Data Miner 17297 | -6/Data Miner | Discovered new exit (range 6) 17321 | -6/Data Miner | Met Data Miner 17346 | -6/Data Miner | Learned location of Section 7 (-2) 17346 | -6/Data Miner | Acquired the access code to Warlord's prototype stash 17367 | -6/Data Miner | Received God Mode back door access code from Data Miner 17396 | -6/Data Miner | Identified exit to Proximity Caves 17400 | -6/Data Miner | Entered Proximity Caves 18163 | -5/Proximity Caves | Learned location of 1 exit from Upper Caves 18865 | -5/Proximity Caves | Discovered exit to Factory (range 9) 19010 | -5/Proximity Caves | Attracted the attention of an 0b10 outpost 19196 | -5/Proximity Caves | Core integrity fell below 50% 19698 | -5/Proximity Caves | Entered Factory 19698 | -5/Factory | Evolved 2 slots: Power x1, Utility x1 19699 | -5/Factory | Identified exit to Upper Caves 19700 | -5/Factory | Loaded intel: 101 trap records 20391 | -5/Factory | Discovered new exit (range 10) 20534 | -5/Factory | Spotted B-75 Beast 20617 | -5/Factory | Discovered exit to Upper Caves (range 13) 20876 | -5/Factory | Entered Upper Caves 20877 | -5/Upper Caves | Identified exit to Upper Caves 20894 | -5/Upper Caves | Lost 4 parts (2p1u1w) 21817 | -5/Upper Caves | Learned Factory emergency access door positions 22006 | -5/Upper Caves | Spotted B-75 Beast 22301 | -5/Upper Caves | Destroyed B-75 Beast 22734 | -5/Upper Caves | Attracted the attention of an 0b10 checkpoint 23851 | -5/Upper Caves | Entered another Upper Caves area 23898 | -5/Upper Caves | Discovered new exit (range 13) 23908 | -5/Upper Caves | Learned Factory non-interactive machine intel 24157 | -5/Upper Caves | Encountered a Warlord checkpoint 24420 | -5/Upper Caves | Attracted the attention of an 0b10 checkpoint 24496 | -5/Upper Caves | Learned Factory stockpile data 24698 | -5/Upper Caves | Discovered new exit (range 3) 24743 | -5/Upper Caves | Identified exit to Zhirov 25288 | -5/Upper Caves | Entered Zhirov 25288 | -5/Zhirov | Discovered new exit (range 3) 25306 | -5/Zhirov | Met Zhirov 25324 | -5/Zhirov | Learned location of Testing (-2) 25344 | -5/Zhirov | Zhirov requested help retrieving the SGEMP Prototype 25361 | -5/Zhirov | Found Alien Artifact 25361 | -5/Zhirov | Identified Integrated Dissipator 25361 | -5/Zhirov | Installed Integrated Dissipator, increased core heat dissipation (+20) 25378 | -5/Zhirov | Found Alien Artifact 25556 | -5/Zhirov | Identified exit to Proximity Caves 25557 | -5/Zhirov | Entered Proximity Caves 25705 | -4/Proximity Caves | Attracted the attention of an 0b10 outpost 26118 | -4/Proximity Caves | Attracted the attention of an 0b10 checkpoint 26446 | -4/Proximity Caves | Identified exit to Factory 26453 | -4/Proximity Caves | Learned Research terminal intel 26991 | -4/Proximity Caves | Entered Factory 26991 | -4/Factory | Evolved 2 slots: Power x1, Utility x1 26994 | -4/Factory | Loaded intel: 208 non-interactive machine locations 27081 | -4/Factory | Identified exit to Upper Caves 27982 | -4/Factory | Entered Upper Caves 28216 | -4/Upper Caves | Entered a destroyed Warlord outpost 28688 | -4/Upper Caves | Attracted the attention of an 0b10 outpost 29275 | -4/Upper Caves | Discovered new exit (range 7) 29276 | -4/Upper Caves | Attracted the attention of an 0b10 checkpoint 29476 | -4/Upper Caves | Identified exit to Upper Caves 29477 | -4/Upper Caves | Entered another Upper Caves area 29549 | -4/Upper Caves | Discovered new exit (range 12) 29565 | -4/Upper Caves | Identified exit to Research 29852 | -4/Upper Caves | Attacked by a delusional Derelict stockpiling Unaware 30293 | -4/Upper Caves | Learned location of 2 exits from Research 30536 | -4/Upper Caves | Discovered new exit (range 12) 30545 | -4/Upper Caves | Identified exit to Warlord 30726 | -4/Upper Caves | Spotted B-86 Titan 30783 | -4/Upper Caves | Entered Warlord 30818 | -4/Warlord | System corruption cleaned by Quarantine Array 30931 | -4/Warlord | Opened Warlord's prototype stash 30938 | -4/Warlord | Found Prototype Reactor 30982 | -4/Warlord | Identified Vortex Chain Reactor 31301 | -4/Warlord | Met Warlord 31326 | -4/Warlord | Warlord's base attacked by MAIN.C 31488 | -4/Warlord | P-70 Sage assimilated allied Sentinel 7b 31542 | -4/Warlord | Lost 6 allies 31553 | -4/Warlord | Found Prototype Energy Gun 31555 | -4/Warlord | Found Prototype Energy Gun 31558 | -4/Warlord | Found Prototype Energy Cannon 31561 | -4/Warlord | Found Prototype Energy Cannon 31563 | -4/Warlord | Found Prototype Energy Cannon 31569 | -4/Warlord | Found Prototype Energy Cannon 31646 | -4/Warlord | Identified Vortex Cannon (x2) 31676 | -4/Warlord | Warlord forces counterattacked 31702 | -4/Warlord | Spotted Executioner 31708 | -4/Warlord | Identified Vortex Driver (x2) 31728 | -4/Warlord | Identified Vortex Shotgun (x2) 31739 | -4/Warlord | Spotted Executioner 31763 | -4/Warlord | Spotted Executioner 31767 | -4/Warlord | Lost 15 allies 31844 | -4/Warlord | Spotted Executioner 31847 | -4/Warlord | Found Prototype Device 31847 | -4/Warlord | Identified Adv. Kinecellerator 31916 | -4/Warlord | Lost 16 allies 32001 | -4/Warlord | Warlord base infiltrated, sounded retreat 32121 | -4/Warlord | Spotted Striker 32121 | -4/Warlord | Spotted B-90 Cyclops 32159 | -4/Warlord | Spotted Striker 32205 | -4/Warlord | Spotted Executioner 32217 | -4/Warlord | Lost 4 allies 32229 | -4/Warlord | Spotted Striker 32247 | -4/Warlord | Core integrity fell below 50% 32254 | -4/Warlord | Found Prototype Launcher 32254 | -4/Warlord | Identified Exp. Neutron Missile Launcher 32275 | -4/Warlord | Discovered new exit (range 15) 32288 | -4/Warlord | Destroyed 9 combat bots 32290 | -4/Warlord | Identified exit to Proximity Caves 32293 | -4/Warlord | Entered Proximity Caves 33135 | -3/Proximity Caves | Discovered exit to Research (range 14) 33161 | -3/Proximity Caves | Destroyed 8 combat bots 33612 | -3/Proximity Caves | Entered Research 33612 | -3/Research | Evolved 2 slots: Utility x1, Weapon x1 33613 | -3/Research | Identified exit to Quarantine 33614 | -3/Research | Identified exit to Research 33615 | -3/Research | Loaded intel: 24 terminal locations 33908 | -3/Research | Build established: Hacker-Construct 34342 | -3/Research | Entered Quarantine 34475 | -3/Quarantine | Found Alien Artifact 34509 | -3/Quarantine | Found Alien Artifact 34648 | -3/Quarantine | Found Alien Slashing Weapon 34648 | -3/Quarantine | Identified Sigix Broadsword 34674 | -3/Quarantine | Build established: Construct 34794 | -3/Quarantine | Found Alien Artifact 34819 | -3/Quarantine | Discovered exit to Research (range 13) 34827 | -3/Quarantine | Identified Transdimensional Reconstructor 34827 | -3/Quarantine | Identified Terrabomb 34827 | -3/Quarantine | Identified Subatomic Replicator 35431 | -3/Quarantine | Entered Research 35431 | -2/Research | Warlord forces began assault on 0b10 35431 | -2/Research | Evolved 2 slots: Utility x2 35448 | -2/Research | Discovered new exit (range 19) 35499 | -2/Research | Identified exit to Testing 35537 | -2/Research | Met up with Warlord 35541 | -2/Research | Research machine network offline 35677 | -2/Research | Found Prototype Device 35679 | -2/Research | Found Prototype Device 35689 | -2/Research | Identified Exp. Thermal Shield (x2) 35723 | -2/Research | Discovered exit to Testing (range 41) 36010 | -2/Research | Borebot progress halted 36061 | -2/Research | Borebot progress halted 36116 | -2/Research | Spotted Executioner 36132 | -2/Research | Found Prototype Protection 36132 | -2/Research | Identified Centrium Heavy Armor Plating 36135 | -2/Research | Found Centrium Heavy Armor Plating 36266 | -2/Research | Borebot progress halted 36272 | -2/Research | Discovered new exit (range 13) 36601 | -2/Research | Spotted Striker 36608 | -2/Research | Spotted Striker 36915 | -2/Research | Lost 3 allies 36935 | -2/Research | Given Cave Seal Controls access code 36951 | -2/Research | Entered Testing 36951 | -2/Testing | Assembled infested ambush trap array 36982 | -2/Testing | Lost 5 allies 37014 | -2/Testing | Found Portable AFG 37118 | -2/Testing | Spotted Striker 37128 | -2/Testing | Found Prototype Processor 37135 | -2/Testing | Identified Exp. Terrain Scan Processor 37186 | -2/Testing | Lost 3 allies 37488 | -2/Testing | Discovered new exit (range 4) 37490 | -2/Testing | Identified exit to Access 37636 | -2/Testing | System corruption reached 10% 37730 | -2/Testing | Crushed by falling debris 37877 | -2/Testing | Spotted Fortress 37932 | -2/Testing | Discovered new exit (range 5) 37932 | -2/Testing | Discovered new exit (range 6) 37934 | -2/Testing | Identified exit to Protoforge 38001 | -2/Testing | Entered Protoforge 38046 | -2/Protoforge | Spotted B-90 Cyclops 38064 | -2/Protoforge | Superfortress began startup sequence 38165 | -2/Protoforge | Found Prototype Storage 38167 | -2/Protoforge | Found Prototype Storage 38171 | -2/Protoforge | Identified Cep. NT7 Matterbank (x2) 38206 | -2/Protoforge | Found Prototype Device 38211 | -2/Protoforge | Identified Cep. Weapon Articulator 38219 | -2/Protoforge | Used Terrabomb 38219 | -2/Protoforge | Additional patrols dispatched to research labs 38228 | -2/Protoforge | Crushed by falling debris 38233 | -2/Protoforge | Crushed by falling debris 38237 | -2/Protoforge | Spotted Hotshot 38238 | -2/Protoforge | Spotted Hotshot 38240 | -2/Protoforge | Spotted Hotshot 38240 | -2/Protoforge | Found Prototype Ballistic Gun 38242 | -2/Protoforge | Found Prototype Ballistic Gun 38244 | -2/Protoforge | Found Prototype Ballistic Gun 38246 | -2/Protoforge | Found Prototype Ballistic Gun 38250 | -2/Protoforge | Identified Cep. XC Strikerail (x4) 38252 | -2/Protoforge | Found Prototype Device 38259 | -2/Protoforge | Destroyed Hotshot 38263 | -2/Protoforge | Destroyed Hotshot 38269 | -2/Protoforge | Spotted Hotshot 38275 | -2/Protoforge | Destroyed Hotshot 38279 | -2/Protoforge | Destroyed Hotshot 38311 | -2/Protoforge | Spotted Immortal 38312 | -2/Protoforge | Spotted Immortal 38323 | -2/Protoforge | Destroyed Immortal 38325 | -2/Protoforge | Destroyed Immortal 38329 | -2/Protoforge | Spotted Decapitator 38329 | -2/Protoforge | Spotted Decapitator 38329 | -2/Protoforge | Spotted Decapitator 38329 | -2/Protoforge | Spotted Decapitator 38333 | -2/Protoforge | Found Prototype Device 38333 | -2/Protoforge | Identified Exp. Cloaking Device 38334 | -2/Protoforge | Identified Crosscalibrator 38343 | -2/Protoforge | Found Prototype Processor 38343 | -2/Protoforge | Identified Exp. Melee Analysis Suite 38360 | -2/Protoforge | Found Cep. Network Penetrator 38362 | -2/Protoforge | Found Cep. Network Penetrator 38386 | -2/Protoforge | Destroyed Decapitator 38425 | -2/Protoforge | Found Faulty Cep. Variable Chargecaster 38426 | -2/Protoforge | Found Faulty Cep. Variable Chargecaster 38429 | -2/Protoforge | Found Cep. Variable Chargecaster 38432 | -2/Protoforge | Found Faulty Cep. Lightning Penetrator 38451 | -2/Protoforge | Found Prototype Energy Cannon 38453 | -2/Protoforge | Identified Cep. Plasma Driver 38453 | -2/Protoforge | Found Cep. Plasma Driver 38459 | -2/Protoforge | Found Prototype Ballistic Cannon 38463 | -2/Protoforge | Found Faulty Cep. Disintegration Ray 38475 | -2/Protoforge | Identified Cep. Helical Railcannon 38475 | -2/Protoforge | Found Faulty Cep. Lightning Penetrator 38476 | -2/Protoforge | Found Faulty Cep. Plasma Driver 38546 | -2/Protoforge | Found Prototype Device 38548 | -2/Protoforge | Identified Exp. EM Disruption Field 38551 | -2/Protoforge | Found Prototype Processor 38554 | -2/Protoforge | Found Exp. Remote Shield 38562 | -2/Protoforge | Spotted V715-m 38562 | -2/Protoforge | Spotted V435-h 38562 | -2/Protoforge | Spotted V824-z 38585 | -2/Protoforge | Identified Cep. Projectile Intercept Suite 38645 | -2/Protoforge | Spotted Decapitator 38645 | -2/Protoforge | Spotted Decapitator 38645 | -2/Protoforge | Spotted V593-n 38648 | -2/Protoforge | Spotted Decapitator 38698 | -2/Protoforge | Destroyed Decapitator 38698 | -2/Protoforge | Destroyed Decapitator 38702 | -2/Protoforge | Destroyed Decapitator 38707 | -2/Protoforge | Destroyed V593-n 38750 | -2/Protoforge | Spotted Executioner 38763 | -2/Protoforge | Destroyed Executioner 38775 | -2/Protoforge | Spotted Hotshot 38809 | -2/Protoforge | Spotted Decapitator 38809 | -2/Protoforge | High security lockdown imminent 38809 | -2/Protoforge | Destroyed Superfortress 38811 | -2/Protoforge | Destroyed Decapitator 38831 | -2/Protoforge | Destroyed Hotshot 38840 | -2/Protoforge | Found Prototype Processor 38841 | -2/Protoforge | Identified Exp. Core Analyzer 38852 | -2/Protoforge | Destroyed 14 combat bots 38885 | -2/Protoforge | Spotted V815-b 38885 | -2/Protoforge | Spotted V321-w 38889 | -2/Protoforge | High security lockdown engaged 38918 | -2/Protoforge | Destroyed V321-w 38920 | -2/Protoforge | Spotted V327-x 38925 | -2/Protoforge | Destroyed V327-x 38940 | -2/Protoforge | Found Unknown Device 38940 | -2/Protoforge | Identified Adv. Force Booster 38942 | -2/Protoforge | Found Prototype Processor 38942 | -2/Protoforge | Identified Cep. Melee Reflex Suite 38945 | -2/Protoforge | Found Prototype Device 38945 | -2/Protoforge | Identified Exp. Thermal Defense Suite 38987 | -2/Protoforge | Spotted Decapitator 38987 | -2/Protoforge | Spotted Decapitator 38998 | -2/Protoforge | Destroyed Decapitator 38998 | -2/Protoforge | Destroyed Decapitator 39017 | -2/Protoforge | Found Prototype Device 39025 | -2/Protoforge | Spotted V280-n 39031 | -2/Protoforge | Destroyed V280-n 39036 | -2/Protoforge | Found Prototype Device 39038 | -2/Protoforge | Found Cep. Antigrav Storage Unit 39049 | -2/Protoforge | Spotted V926-m 39052 | -2/Protoforge | System corruption reached 30% 39052 | -2/Protoforge | Destroyed V926-m 39054 | -2/Protoforge | Identified Cep. Matter Streamer (x2) 39056 | -2/Protoforge | Found Prototype Device 39057 | -2/Protoforge | Identified Exp. Shield Generator 39058 | -2/Protoforge | Spotted V906-h 39062 | -2/Protoforge | Destroyed V906-h 39069 | -2/Protoforge | Found Prototype Device 39069 | -2/Protoforge | Identified Exp. Kinecellerator 39105 | -2/Protoforge | Spotted Immortal 39105 | -2/Protoforge | Spotted Immortal 39110 | -2/Protoforge | Destroyed Immortal 39118 | -2/Protoforge | Destroyed Immortal 39129 | -2/Protoforge | Found Cep. Rapid Grenade Launcher 39131 | -2/Protoforge | Found Cep. Tactical Fusion Warhead 39132 | -2/Protoforge | Found Cep. EMP Blanket Launcher 39135 | -2/Protoforge | Found Cep. Rapid Grenade Launcher 39140 | -2/Protoforge | Spotted V564-p 39141 | -2/Protoforge | Found Cep. Arcsight Missile Launcher 39143 | -2/Protoforge | Found Cep. EMP Blanket Launcher 39144 | -2/Protoforge | Destroyed V564-p 39148 | -2/Protoforge | Found Corrupted Cep. Rapid Grenade Launcher 39199 | -2/Protoforge | Found Prototype Device 39205 | -2/Protoforge | Found Prototype Device 39213 | -2/Protoforge | Identified Cep. Recoil Nullifier 39213 | -2/Protoforge | Found Prototype Device 39215 | -2/Protoforge | Found Cep. Weapon Articulator 39216 | -2/Protoforge | Identified Cep. Networked Targeting System (x2) 39224 | -2/Protoforge | Found Cep. Weapon Articulator 39226 | -2/Protoforge | Found Cep. Hypertargeting System 39228 | -2/Protoforge | Found Cep. Weapon Articulator 39235 | -2/Protoforge | Found Prototype Device 39246 | -2/Protoforge | Identified Mni. Quantum Capacitor 39251 | -2/Protoforge | Spotted AP7-3 39251 | -2/Protoforge | Spotted AP7-3 39252 | -2/Protoforge | Destroyed AP7-3 39273 | -2/Protoforge | Destroyed AP7-3 39279 | -2/Protoforge | Found Prototype Device 39280 | -2/Protoforge | Identified Exp. ECM Suite 39283 | -2/Protoforge | Found Prototype Processor 39283 | -2/Protoforge | Identified Exp. Target Analyzer 39287 | -2/Protoforge | Found Cep. Thermoelectric Network 39291 | -2/Protoforge | Found Faulty Cep. Thermoelectric Network 39293 | -2/Protoforge | Found Faulty Cep. Cloak Mesh 39296 | -2/Protoforge | Found Faulty Cep. Cloak Mesh 39298 | -2/Protoforge | Found Cep. Cloak Mesh 39304 | -2/Protoforge | Found Cep. Impact Drone Bay 39309 | -2/Protoforge | Found Prototype Energy Gun 39312 | -2/Protoforge | Identified Enh. Gamma Rifle 39361 | -2/Protoforge | Found Transdimensional Reconstructor 39371 | -2/Protoforge | Found Prototype Device 39375 | -2/Protoforge | Identified Cep. Navigation Harness 39406 | -2/Protoforge | Spotted Executioner 39406 | -2/Protoforge | Spotted Executioner 39412 | -2/Protoforge | Destroyed Executioner 39429 | -2/Protoforge | Destroyed Executioner 39467 | -2/Protoforge | Destroyed Investigator 39530 | -2/Protoforge | Destroyed 50 combat bots 39572 | -2/Protoforge | Destroyed Executioner 39572 | -2/Protoforge | Destroyed Striker 39578 | -2/Protoforge | Spotted Striker 39579 | -2/Protoforge | Destroyed Striker 39579 | -2/Protoforge | Destroyed Executioner 39607 | -2/Protoforge | Destroyed 26 combat bots 39610 | -2/Protoforge | Found Exp. System Purifier 39616 | -2/Protoforge | Found Cep. Variable Chargecaster 39618 | -2/Protoforge | Found Faulty Cep. Variable Chargecaster 39619 | -2/Protoforge | Found Faulty Cep. Variable Chargecaster 39629 | -2/Protoforge | Found Cep. Variable Chargecaster 39715 | -2/Protoforge | Spotted Striker 39716 | -2/Protoforge | Spotted Striker 39716 | -2/Protoforge | Destroyed Striker 39723 | -2/Protoforge | Destroyed Striker 39728 | -2/Protoforge | Spotted Striker 39735 | -2/Protoforge | Destroyed Striker 39748 | -2/Protoforge | Spotted Executioner 39748 | -2/Protoforge | Spotted Striker 39753 | -2/Protoforge | Destroyed Executioner 39756 | -2/Protoforge | Destroyed Striker 39756 | -2/Protoforge | Spotted Striker 39756 | -2/Protoforge | Spotted Executioner 39758 | -2/Protoforge | Spotted Executioner 39764 | -2/Protoforge | Destroyed Executioner 39764 | -2/Protoforge | Destroyed Striker 39765 | -2/Protoforge | Spotted Executioner 39766 | -2/Protoforge | Spotted Executioner 39766 | -2/Protoforge | Destroyed Executioner 39767 | -2/Protoforge | Destroyed Executioner 39771 | -2/Protoforge | Destroyed Executioner 39820 | -2/Protoforge | Spotted Hotshot 39822 | -2/Protoforge | Destroyed Hotshot 39822 | -2/Protoforge | Destroyed Hotshot 39834 | -2/Protoforge | Spotted Hotshot 39835 | -2/Protoforge | Destroyed Hotshot 39836 | -2/Protoforge | Spotted Hotshot 39837 | -2/Protoforge | Destroyed Hotshot 39840 | -2/Protoforge | Spotted Hotshot 39841 | -2/Protoforge | Spotted Hotshot 39841 | -2/Protoforge | Spotted Hotshot 39842 | -2/Protoforge | Destroyed Hotshot 39845 | -2/Protoforge | Destroyed Hotshot 39850 | -2/Protoforge | Spotted Hotshot 39850 | -2/Protoforge | Destroyed Hotshot 39850 | -2/Protoforge | Spotted Hotshot 39851 | -2/Protoforge | Spotted Hotshot 39852 | -2/Protoforge | Destroyed Hotshot 39852 | -2/Protoforge | Destroyed Hotshot 39853 | -2/Protoforge | Spotted Hotshot 39854 | -2/Protoforge | Destroyed Hotshot 39854 | -2/Protoforge | Spotted Hotshot 39855 | -2/Protoforge | Spotted Hotshot 39856 | -2/Protoforge | Spotted Hotshot 39859 | -2/Protoforge | Destroyed Hotshot 39860 | -2/Protoforge | Destroyed Hotshot 39860 | -2/Protoforge | Spotted Hotshot 39861 | -2/Protoforge | Destroyed Hotshot 39862 | -2/Protoforge | Destroyed Hotshot 39865 | -2/Protoforge | Destroyed Hotshot 39865 | -2/Protoforge | Spotted Hotshot 39866 | -2/Protoforge | Destroyed Hotshot 39866 | -2/Protoforge | Destroyed Hotshot 39891 | -2/Protoforge | Destroyed 63 combat bots 39893 | -2/Protoforge | Spotted Hotshot 39894 | -2/Protoforge | Spotted Hotshot 39894 | -2/Protoforge | Spotted Hotshot 39895 | -2/Protoforge | Destroyed Hotshot 39896 | -2/Protoforge | Spotted Hotshot 39898 | -2/Protoforge | Destroyed Hotshot 39898 | -2/Protoforge | Destroyed Hotshot 39904 | -2/Protoforge | Destroyed Hotshot 39950 | -2/Protoforge | Spotted Striker 39951 | -2/Protoforge | Spotted Striker 39954 | -2/Protoforge | Spotted Striker 39954 | -2/Protoforge | Spotted Overlord 39961 | -2/Protoforge | Destroyed Striker 39982 | -2/Protoforge | Destroyed 26 combat bots 39984 | -2/Protoforge | Warped through subspace 39985 | -2/Protoforge | Core integrity fell below 50% 40024 | -2/Protoforge | Discovered exit to Access (range 15) 40034 | -2/Protoforge | Entered Access 40034 | -1/Access | Evolved 2 slots: Utility x2 40062 | -1/Access | Lost 4 parts (1p3w) 40133 | -1/Access | Spotted Executioner 40133 | -1/Access | Spotted Executioner 40144 | -1/Access | Identified exit to Command 40206 | -1/Access | High security lockdown imminent 40286 | -1/Access | High security lockdown engaged 40312 | -1/Access | Build established: Hacker-Gunner 40430 | -1/Access | Entered Command 40513 | -1/Command | Spotted M Guard 40513 | -1/Command | Spotted M Guard 40513 | -1/Command | Spotted Combat Programmer 40514 | -1/Command | Spotted Combat Programmer 40541 | -1/Command | Destroyed Combat Programmer 40560 | -1/Command | Destroyed Combat Programmer 40572 | -1/Command | High security lockdown imminent 40602 | -1/Command | Destroyed 10 combat bots 40607 | -1/Command | Destroyed M Guard 40610 | -1/Command | Allies destroyed M Guard 40610 | -1/Command | All MAIN.C guards destroyed 40614 | -1/Command | Found Corrupted Prototype Device 40614 | -1/Command | Identified AEGIS Remote Shield 40615 | -1/Command | System corruption reached 10% 40616 | -1/Command | Found Corrupted Prototype Launcher 40619 | -1/Command | Crushed by falling debris 40630 | -1/Command | Lost 7 parts (4u3w) 40652 | -1/Command | High security lockdown engaged 40690 | -1/Command | Met MAIN.C 40697 | -1/Command | 0b10 Conduit disabled 40766 | -1/Command | MAIN.C activated Command garrisons 40768 | -1/Command | Destroyed MAIN.C Shell 40778 | -1/Command | Lost 5 parts (2p1u2w) 40810 | -1/Command | System corruption reached 30% 40818 | -1/Command | Lost 5 allies 40834 | -1/Command | Destroyed MAIN.C 40954 | -1/Command | Found Prototype Device 40959 | -1/Command | Spotted Striker 40988 | -1/Command | Lost 3 parts (3w) 40991 | -1/Command | Destroyed Striker 40998 | -1/Command | Spotted B-99 Colossus 40999 | -1/Command | Identified Active Sensor Suite 41005 | -1/Command | Spotted Executioner 41006 | -1/Command | Spotted Executioner 41021 | -1/Command | Discovered new exit (range 6) 41334 | -1/Command | Build established: Scavenger-Tank 42520 | -1/Command | Found Prototype Device 42520 | -1/Command | Identified Exp. Focal Shield 42523 | -1/Command | Found Prototype Reactor 42523 | -1/Command | Identified Zero-point Reactor 42793 | -1/Command | Found Prototype Ballistic Gun 42793 | -1/Command | Identified Multirail 42834 | -1/Command | Found Multirail 43082 | -1/Command | Build established: Skirmisher 43557 | -1/Command | Build established: Construct 43952 | -1/Command | Found Exp. Core Analyzer 43954 | -1/Command | Discovered new exit (range 8) 45911 | -1/Command | Found Exp. Core Analyzer 45958 | -1/Command | Found Exp. Core Analyzer 46554 | -1/Command | Found AEGIS Remote Shield 46556 | -1/Command | Found Exp. System Purifier 46626 | -1/Command | Found Vortex Chain Reactor 47101 | -1/Command | Build established: Scavenger-Construct 47124 | -1/Command | Warped through subspace to slip node 47124 | -1/Command | Discovered new exit (range 4) 47133 | -1/Command | Entered Access_0 47135 | -1/Access_0 | Met Architect 47137 | -1/Access_0 | Architect warped through subspace 47141 | -1/Access_0 | Destroyed A8 47174 | -1/Access_0 | Architect warped through subspace 47186 | -1/Access_0 | Destroyed 7 combat bots 47188 | -1/Access_0 | Found Integrated Dissipator 47188 | -1/Access_0 | Installed Integrated Dissipator, increased core heat dissipation (+20) 47206 | -1/Access_0 | Architect warped through subspace 47212 | -1/Access_0 | Found Prototype Protection 47213 | -1/Access_0 | Identified Exp. Powered Armor 47228 | -1/Access_0 | A6 warped into view 47244 | -1/Access_0 | Destroyed A6 47259 | -1/Access_0 | Architect warped through subspace 47316 | -1/Access_0 | Destroyed A2 47318 | -1/Access_0 | Architect warped through subspace 47320 | -1/Access_0 | Found Prototype Protection 47332 | -1/Access_0 | Extracted Singularity Gate Test 138-C access codes from A2's data core 47379 | -1/Access_0 | Architect warped through subspace 47382 | -1/Access_0 | A5 warped into view 47403 | -1/Access_0 | Destroyed A5 47409 | -1/Access_0 | Started Test 138-B, establishing a local singularity 47409 | -1/Access_0 | Singularity Gate disabled 47424 | -1/Access_0 | Destroyed 7 combat bots 47430 | -1/Access_0 | Architect warped through subspace 47502 | -1/Access_0 | Found Prototype Device 47502 | -1/Access_0 | Identified Exp. Weapon Cycler 47504 | -1/Access_0 | Found Prototype Device 47504 | -1/Access_0 | Identified Desublimator 47507 | -1/Access_0 | Found Prototype Device 47507 | -1/Access_0 | Identified Exp. Phase Shifter 47510 | -1/Access_0 | Found Exp. Phase Shifter 47512 | -1/Access_0 | Found Exp. Weapon Cycler 47563 | -1/Access_0 | Architect warped through subspace 47594 | -1/Access_0 | Architect warped through subspace 47619 | -1/Access_0 | Architect warped through subspace 47645 | -1/Access_0 | Architect warped through subspace 47645 | -1/Access_0 | Subspace Access Node disabled 47678 | -1/Access_0 | Architect warped through subspace 47700 | -1/Access_0 | Subspace Access Node disabled 47707 | -1/Access_0 | A4 warped into view 47715 | -1/Access_0 | Destroyed A4 47726 | -1/Access_0 | Architect warped through subspace 47741 | -1/Access_0 | Found Prototype Device 47741 | -1/Access_0 | Identified Exp. Shock Absorption System 47773 | -1/Access_0 | Architect warped through subspace 47825 | -1/Access_0 | Architect warped through subspace 47852 | -1/Access_0 | Core integrity fell below 50% 47857 | -1/Access_0 | Architect warped through subspace 47878 | -1/Access_0 | Architect warped through subspace 47902 | -1/Access_0 | Architect warped through subspace 47915 | -1/Access_0 | Architect warped through subspace 47943 | -1/Access_0 | Architect warped through subspace 47960 | -1/Access_0 | Subspace Access Node disabled 47969 | -1/Access_0 | Architect warped through subspace 47983 | -1/Access_0 | Architect warped through subspace 47997 | -1/Access_0 | Architect warped through subspace 48006 | -1/Access_0 | Architect warped through subspace 48018 | -1/Access_0 | Subspace Access Node disabled 48029 | -1/Access_0 | Destroyed Architect 48030 | -1/Access_0 | Extracted unknown sensor trigger ID from Architect's data core 48032 | -1/Access_0 | Found Alien Artifact 48034 | -1/Access_0 | Found Prototype Protection 48034 | -1/Access_0 | Identified Centrium Linked Plating 48045 | -1/Access_0 | Found Prototype Hackware 48046 | -1/Access_0 | Found Prototype Hackware 48049 | -1/Access_0 | Found Centrium Linked Plating 48050 | -1/Access_0 | Found Prototype Hackware 48118 | -1/Access_0 | A3 warped into view 48131 | -1/Access_0 | Destroyed A3 48138 | -1/Access_0 | Found Prototype Ballistic Gun 48139 | -1/Access_0 | Found Prototype Device 48140 | -1/Access_0 | Identified ST Field Compressor 48145 | -1/Access_0 | Found Prototype Processor 48145 | -1/Access_0 | Identified Spectral Analyzer 48151 | -1/Access_0 | Found Prototype Hackware 48151 | -1/Access_0 | Identified Quantum Router 48154 | -1/Access_0 | Found Prototype Hackware 48154 | -1/Access_0 | Identified Deep Network Scanner 48166 | -1/Access_0 | Found Alien Artifact 48166 | -1/Access_0 | Identified Core Regenerator 48166 | -1/Access_0 | Used Core Regenerator, restored core integrity (+400) 48328 | -1/Access_0 | Found Alien Artifact 48328 | -1/Access_0 | Identified Integrated Reactor 48328 | -1/Access_0 | Installed Integrated Reactor, increased core energy generation (+10) 48634 | -1/Access_0 | Found Alien Artifact 48634 | -1/Access_0 | Identified Hpw. Transdimensional Reconstructor (x2) 48634 | -1/Access_0 | Warped through subspace to slip node 48634 | -1/Access_0 | Discovered new exit (range 8) 48693 | -1/Access_0 | Crushed by falling debris 48695 | -1/Access_0 | Crushed by falling debris 48743 | -1/Access_0 | Crushed by falling debris 48745 | -1/Access_0 | Crushed by falling debris 48762 | -1/Access_0 | Crushed by falling debris 49032 | -1/Access_0 | Used Subatomic Replicator to replicate Sigix Corpse 49035 | -1/Access_0 | Found Sigix Corpse 49207 | -1/Access_0 | Warped through subspace to slip node 49214 | *** | Establishing 0b11! Last Messages --------------- >>Record "Log L.OZLVE4D5" [REDACTED] >>Record "Log L.QL67S5A3" [REDACTED] >>Record "Log L.RSL58V7F" [REDACTED] >>Record! "Log L.VFLK3RLK" Warlord has finally begun his main assault, and it's proceeding quite well. All upper Research areas are under control, as are Testing, Quarantine, and Armory. At this rate, MAIN.C and Warlord forces will wipe each other out, or at least severely cripple one another. >>Record "Log L.XLJZXWC5" [REDACTED] >>Record "Log L.Y1U23ASU" [REDACTED] 49195_ Acquired 88 matter. 49207_ Warped through subspace, drawn to slip node. Map ----- +----------------------------------------------------+ | | | | | | | | | | | | | | | | | | | | | | | | | | | | | | | | | ?????????????????????????????????????????????????? | | ?????????????????????????????????????????????????? | | ?????????????????????????????????????????????????? | | ?????????????????????????????????????????????????? | | ?????????????????????????????????????????????????? | | ?????????????????????????????????????????????????? | | ????????????????????????###??????????????????????? | | ???????????????????????## ##?????????????????????? | | ???????????????????????# #?????????????????????? | | ???????????????????????# @ #?????????????????????? | | ??????????????????????## #?????????????????????? | | ??????????????????????# #?????????????????????? | | ??????????????????????# ##?????????????????????? | | ??????????????????????## #?????????????????????? | | ??????????????????????# #?????????????????????? | | ??????????????????????# ##?????????????????????? | | ??????????????????????# < #?????????????????????? | | ?????????????????????## ##?????????????????????? | | ????????????????????##;; #??????????????????????? | | ???????????????????## ;#;;#?????????????????????? | | ???????????????????# ## #????????????????????? | | ???????????????????# ## #???????????????????? | | ???????????????????# ###;" #???????????????????? | | ??????????????????## # ### #???????????????????? | | ??????????????????# #"## ###???????????????????? | | ??????????????????# ####?##?????????????????????? | | ?????????????????## #???????????????????????????? | | ?????????????????# #???????????????????????????? | | ????????????????## ##???????????????????????????? | | ????????????????# ##????????????????????????????? | | ????????????????## #?????????????????????????????? | | ????????????????## #?????????????????????????????? | | ???????????????## ##?????????????????????????????? | | ??????????????## #??????????????????????????????? | +----------------------------------------------------+ Best States ------------- Heat Dissipation 121 Coolant Potential 65 Energy Generation 134 Energy Capacity 5375 Matter Stores 300 Matter Capacity 300 Sight Range 24 Robot Scan Range 20 Terrain Scan Range 24 Terrain Scan Density 210 ECM Strength 2 Jamming Range 16 Cloak Strength 9 Additional Mass Support 12 Base Temperature (-) 200 Armor Coverage 900 Resistance: KI 30 Resistance: TH 25 Core Shielding 40 Weapon Shielding 90 Weapon Cycling 30 Phase Shifting 20 Evasion (%) 98 Targeting Accuracy 30 Core Analysis 8 Armor Integrity Analysis 40 Recoil Reduction 6 Matter Filtering 50 Kinecelleration 66 Offensive Hacking 50 Item Schematics ----------------- Hcp. Storage Unit | -8/Recycling | Hacked Combat Drone Bay | -6/Data Miner | Free Lgt. Regenerative Plating | -6/Data Miner | Free Enh. Flexi-carbon Leg | -6/Data Miner | Free Imp. Matter Compressor | -6/Data Miner | Free Enh. Coil Gun | -6/Data Miner | Free Impulse Thruster | -6/Data Miner | Free Lrn. Terrain Scanner | -6/Data Miner | Free Hvy. Gauss Cannon | -6/Data Miner | Free Hvy. Phase Cannon | -6/Data Miner | Free Hvy. Siege Treads | -6/Data Miner | Free Graphene Brace | -6/Data Miner | Free Biometal Medium Treads | -6/Data Miner | Free Imp. Thunder Leg | -6/Data Miner | Free Weapon Mount | -5/Factory | Hacked Assault Drone Bay | -5/Zhirov | Free Exp. Heat Sink | -5/Zhirov | Free Exp. Optical Array | -5/Zhirov | Free Imp. Arc Thrower | -5/Zhirov | Free Prc. Phase Gun | -2/Protoforge | Archive Robot Schematics ------------------ R-10 Processor | -6/Data Miner | Free L-41 Fighter | -6/Data Miner | Free S-27 Virus | -6/Data Miner | Free Y-64 Sentinel | -6/Data Miner | Free G-50 Soldier | -6/Data Miner | Free Fabricated ------------ Nothing Repaired ---------- Spk. Treads | 27% | -8/Materials Alien Tech Used ----------------- Integrated Dissipator Sigix Broadsword Terrabomb Transdimensional Reconstructor Core Regenerator Integrated Reactor High-powered Transdimensional Reconstructor Subatomic Replicator Achievements -------------- None Challenges ------------ None Game ------ Seed PowerLinkedStatue Manual? 0 Play Time 10:19:15 Cumulative 608.5 hours Start 2025.05.19 @ 21:07:10 End 2025.05.22 @ 22:32:22 Sessions 3 Manual Loads 0 Difficulty Rogue Special Mode None Game No. 135 Rogue 135 Adventurer 0 Explorer 0 Win Type 1 Total 36 Types 10/4/7/1/1/1/8/2/1/1 Lore% 68 Gallery% 82 Achievement% 79 Wizard Run 0 Options --------- Layout 1 ASCII 0 Keyboard 0 Movement Mouse Keybinds 0 Fullscreen 1 Font 24/Smallcaps Map View 50x35 Zoom Use 1% Tactical HUD 1 Map Filters NONE Filters NONE Steam 1 RUN: 4c37c4ec-5049-4a56-9134-7257c6cc2b3a